Workbook

Sheet INGRESO DE DATOS
A8: COTIZACION DE SEGURO MEDICO INTERNACIONAL
A10: INGRESE LOS DATOS DEL PROPUESTO ASEGURADO:
C12: Nombre del Asegurado principal: | D12: NOMBRE COMPLETO
F14: Número de adultos en la póliza: | G14: 1 | I14: Número de hijos en la póliza: | J14: 0
F16: Edad del titular: | G16: 18 | I16: Edad de cónyuge: | J16: 18
A19: INGRESE EL NOMBRE DE LA AGENCIA ASESORA:
C21: Nombre de la Agencia: | D21: AGENCIA
A24: ESCOJA EL PRODUCTO PARA VISUALIZAR LA COTIZACION RESPECTIVA:

Sheet Exclusive
C10: Cotización de Seguro Médico Internacional - Bupa EXCLUSIVE Care
H12: =+'INGRESO DE DATOS'!$D$12 -> NOMBRE COMPLETO
H14: =+'INGRESO DE DATOS'!$D$21 -> AGENCIA
J16: =+'INGRESO DE DATOS'!$G$14 -> 1 | M16: =+'INGRESO DE DATOS'!$G$16 -> 18
F17: FECHA DE COTIZACION :
F18: =NOW() -> 2023-08-16T11:14:18.050 | J18: =+'INGRESO DE DATOS'!$J$14 -> 0 | M18: =+'INGRESO DE DATOS'!$J$16 -> 18
I20: TRUE | K20: COMPLICACIONES DE MATERNIDAD
J22: FALSE
F25: Deducibles | H25: PLAN 1 | I25: PLAN 2 | J25: PLAN 3 | K25: PLAN 4 | L25: PLAN 5 | M25: PLAN 6
F26: Dentro del pais de residencia | H26: n/a | I26: 1000 | J26: 2000 | K26: 5000 | L26: 10000 | M26: 20000
F27: Fuera del pais de residencia | H27: n/a | I27: 2000 | J27: 3000 | K27: 5000 | L27: 10000 | M27: 20000
F30: Tarifas Anuales
F31: Prima de Titular : | H31: n/a | I31: =VLOOKUP($M$16,Tablas!$A$6:$H$29,4,TRUE) -> 12506 | J31: =VLOOKUP($M$16,Tablas!$A$6:$H$29,5,TRUE) -> 8273 | K31: =VLOOKUP($M$16,Tablas!$A$6:$H$29,6,TRUE) -> 5718 | L31: =VLOOKUP($M$16,Tablas!$A$6:$H$29,7,TRUE) -> 3924 | M31: =VLOOKUP($M$16,Tablas!$A$6:$H$29,8,TRUE) -> 3089
F32: Prima de Cónyuge | H32: n/a | I32: =IF($J$16=1,0,(VLOOKUP($M$18,Tablas!$A$6:$H$29,4,TRUE))) -> 0 | J32: =IF($J$16=1,0,(VLOOKUP($M$18,Tablas!$A$6:$H$29,5,TRUE))) -> 0 | K32: =IF($J$16=1,0,(VLOOKUP($M$18,Tablas!$A$6:$H$29,6,TRUE))) -> 0 | L32: =IF($J$16=1,0,(VLOOKUP($M$18,Tablas!$A$6:$H$29,7,TRUE))) -> 0 | M32: =IF($J$16=1,0,(VLOOKUP($M$18,Tablas!$A$6:$H$29,8,TRUE))) -> 0
F33: Primas Hijos : | H33: n/a | I33: =IF($J$18=0,0,(VLOOKUP($J$18,Tablas!$A$30:$H$32,4,TRUE))) -> 0 | J33: =IF($J$18=0,0,(VLOOKUP($J$18,Tablas!$A$30:$H$32,5,TRUE))) -> 0 | K33: =IF($J$18=0,0,(VLOOKUP($J$18,Tablas!$A$30:$H$32,6,TRUE))) -> 0 | L33: =IF($J$18=0,0,(VLOOKUP($J$18,Tablas!$A$30:$H$32,7,TRUE))) -> 0 | M33: =IF($J$18=0,0,(VLOOKUP($J$18,Tablas!$A$30:$H$32,8,TRUE))) -> 0
F34: Prima Rider Complic. Maternidad | H34: n/a | I34: =+IF($I$20=FALSE,0,Tablas!D$33) -> 0 | J34: =+IF($I$20=FALSE,0,Tablas!E$33) -> 0 | K34: =+IF($I$20=FALSE,0,Tablas!F$33) -> 225 | L34: =+IF($I$20=FALSE,0,Tablas!G$33) -> 225 | M34: =+IF($I$20=FALSE,0,Tablas!H$33) -> 225
F35: TOTAL PRIMA NETA : | H35: n/a | I35: =SUM(I31:I34) -> 12506 | J35: =SUM(J31:J34) -> 8273 | K35: =SUM(K31:K34) -> 5943 | L35: =SUM(L31:L34) -> 4149 | M35: =SUM(M31:M34) -> 3314
F36: Costo Administrativo Anual : | H36: n/a | I36: 75 | J36: 75 | K36: 75 | L36: 75 | M36: 75
F37: GRAN TOTAL : | H37: n/a | I37: =SUM(I35:I36) -> 12581 | J37: =SUM(J35:J36) -> 8348 | K37: =SUM(K35:K36) -> 6018 | L37: =SUM(L35:L36) -> 4224 | M37: =SUM(M35:M36) -> 3389
F39: Tarifas Semestrales
F40: Prima de Titular : | H40: n/a | I40: =VLOOKUP($M$16,Tablas!$A$39:$H$62,4,TRUE) -> 6628.18 | J40: =VLOOKUP($M$16,Tablas!$A$39:$H$62,5,TRUE) -> 4384.69 | K40: =VLOOKUP($M$16,Tablas!$A$39:$H$62,6,TRUE) -> 3030.54 | L40: =VLOOKUP($M$16,Tablas!$A$39:$H$62,7,TRUE) -> 2079.72 | M40: =VLOOKUP($M$16,Tablas!$A$39:$H$62,8,TRUE) -> 1637.17
F41: Prima de Cónyuge | H41: n/a | I41: =IF($J$16=1,0,(VLOOKUP($M$18,Tablas!$A$39:$H$62,4,TRUE))) -> 0 | J41: =IF($J$16=1,0,(VLOOKUP($M$18,Tablas!$A$39:$H$62,5,TRUE))) -> 0 | K41: =IF($J$16=1,0,(VLOOKUP($M$18,Tablas!$A$39:$H$62,6,TRUE))) -> 0 | L41: =IF($J$16=1,0,(VLOOKUP($M$18,Tablas!$A$39:$H$62,7,TRUE))) -> 0 | M41: =IF($J$16=1,0,(VLOOKUP($M$18,Tablas!$A$39:$H$62,8,TRUE))) -> 0
F42: Primas Hijos : | H42: n/a | I42: =IF($J$18=0,0,(VLOOKUP($J$18,Tablas!$A$63:$H$65,4,TRUE))) -> 0 | J42: =IF($J$18=0,0,(VLOOKUP($J$18,Tablas!$A$63:$H$65,5,TRUE))) -> 0 | K42: =IF($J$18=0,0,(VLOOKUP($J$18,Tablas!$A$63:$H$65,6,TRUE))) -> 0 | L42: =IF($J$18=0,0,(VLOOKUP($J$18,Tablas!$A$63:$H$65,7,TRUE))) -> 0 | M42: =IF($J$18=0,0,(VLOOKUP($J$18,Tablas!$A$63:$H$65,8,TRUE))) -> 0
F43: Prima Rider Complic. Maternidad | H43: n/a | I43: =+IF($I$20=FALSE,0,Tablas!D$66) -> 0 | J43: =+IF($I$20=FALSE,0,Tablas!E$66) -> 0 | K43: =+IF($I$20=FALSE,0,Tablas!F$66) -> 119.25 | L43: =+IF($I$20=FALSE,0,Tablas!G$66) -> 119.25 | M43: =+IF($I$20=FALSE,0,Tablas!H$66) -> 119.25
F44: TOTAL PRIMA NETA : | H44: n/a | I44: =SUM(I40:I43) -> 6628.18 | J44: =SUM(J40:J43) -> 4384.69 | K44: =SUM(K40:K43) -> 3149.79 | L44: =SUM(L40:L43) -> 2198.97 | M44: =SUM(M40:M43) -> 1756.42
F45: Costo Administrativo Anual : | H45: n/a | I45: 75 | J45: 75 | K45: 75 | L45: 75 | M45: 75
F46: GRAN TOTAL (1ra Cuota) : | H46: n/a | I46: =SUM(I44:I45) -> 6703.18 | J46: =SUM(J44:J45) -> 4459.69 | K46: =SUM(K44:K45) -> 3224.79 | L46: =SUM(L44:L45) -> 2273.97 | M46: =SUM(M44:M45) -> 1831.42
F47: GRAN TOTAL (2da Cuota) : | H47: n/a | I47: =I44 -> 6628.18 | J47: =J44 -> 4384.69 | K47: 3149.79 | L47: 2198.97 | M47: 1756.42
F48: Tarifas en US $ - Válidas desde 01 enero 2023
F50: Este presupuesto solamente tiene carácter informativo y en ningún momento expresa compromiso legal para suministrarle cobertura de seguro. La emisión de una póliza de seguro Bupa está sujeta a todas las evaluaciones de riesgo por parte de Bupa y a la recepción de todos los pagos de prima requeridos.

Sheet Privilege
C10: Cotización de Seguro Médico Internacional - Bupa PRIVILEGE Care
H12: =+'INGRESO DE DATOS'!$D$12 -> NOMBRE COMPLETO
H14: =+'INGRESO DE DATOS'!$D$21 -> AGENCIA
J16: =+'INGRESO DE DATOS'!$G$14 -> 1 | M16: =+'INGRESO DE DATOS'!$G$16 -> 18
F17: FECHA DE COTIZACION :
F18: =NOW() -> 2023-08-16T11:14:18.050 | J18: =+'INGRESO DE DATOS'!$J$14 -> 0 | M18: =+'INGRESO DE DATOS'!$J$16 -> 18
I20: TRUE | K20: COMPLICACIONES DE MATERNIDAD
J22: FALSE
F25: Deducibles | H25: PLAN 1 | I25: PLAN 2 | J25: PLAN 3 | K25: PLAN 4 | L25: PLAN 5 | M25: PLAN 6
F26: Dentro del pais de residencia | H26: n/a | I26: 1000 | J26: 2000 | K26: 5000 | L26: 10000 | M26: 20000
F27: Fuera del pais de residencia | H27: n/a | I27: 2000 | J27: 3000 | K27: 5000 | L27: 10000 | M27: 20000
F30: Tarifas Anuales
F31: Prima de Titular : | H31: n/a | I31: =VLOOKUP($M$16,Tablas!$A$140:$H$163,4,TRUE) -> 10521 | J31: =VLOOKUP($M$16,Tablas!$A$140:$H$163,5,TRUE) -> 7235 | K31: =VLOOKUP($M$16,Tablas!$A$140:$H$163,6,TRUE) -> 4964 | L31: =VLOOKUP($M$16,Tablas!$A$140:$H$163,7,TRUE) -> 3396 | M31: =VLOOKUP($M$16,Tablas!$A$140:$H$163,8,TRUE) -> 2590
F32: Prima de Cónyuge | H32: n/a | I32: =IF($J$16=1,0,(VLOOKUP($M$18,Tablas!$A$140:$H$163,4,TRUE))) -> 0 | J32: =IF($J$16=1,0,(VLOOKUP($M$18,Tablas!$A$140:$H$163,5,TRUE))) -> 0 | K32: =IF($J$16=1,0,(VLOOKUP($M$18,Tablas!$A$140:$H$163,6,TRUE))) -> 0 | L32: =IF($J$16=1,0,(VLOOKUP($M$18,Tablas!$A$140:$H$163,7,TRUE))) -> 0 | M32: =IF($J$16=1,0,(VLOOKUP($M$18,Tablas!$A$140:$H$163,8,TRUE))) -> 0
F33: Primas Hijos : | H33: n/a | I33: =IF($J$18=0,0,(VLOOKUP($J$18,Tablas!$A$164:$H$166,4,TRUE))) -> 0 | J33: =IF($J$18=0,0,(VLOOKUP($J$18,Tablas!$A$164:$H$166,5,TRUE))) -> 0 | K33: =IF($J$18=0,0,(VLOOKUP($J$18,Tablas!$A$164:$H$166,6,TRUE))) -> 0 | L33: =IF($J$18=0,0,(VLOOKUP($J$18,Tablas!$A$164:$H$166,7,TRUE))) -> 0 | M33: =IF($J$18=0,0,(VLOOKUP($J$18,Tablas!$A$164:$H$166,8,TRUE))) -> 0
F34: Prima Rider Complic. Maternidad | H34: n/a | I34: =+IF($I$20=FALSE,0,Tablas!D$167) -> 0 | J34: =+IF($I$20=FALSE,0,Tablas!E$167) -> 0 | K34: =+IF($I$20=FALSE,0,Tablas!F$167) -> 225 | L34: =+IF($I$20=FALSE,0,Tablas!G$167) -> 225 | M34: =+IF($I$20=FALSE,0,Tablas!H$167) -> 225
F35: TOTAL PRIMA NETA : | H35: n/a | I35: =SUM(I31:I34) -> 10521 | J35: =SUM(J31:J34) -> 7235 | K35: =SUM(K31:K34) -> 5189 | L35: =SUM(L31:L34) -> 3621 | M35: =SUM(M31:M34) -> 2815
F36: Costo Administrativo Anual : | H36: n/a | I36: 75 | J36: 75 | K36: 75 | L36: 75 | M36: 75
F37: GRAN TOTAL : | H37: n/a | I37: =SUM(I35:I36) -> 10596 | J37: =SUM(J35:J36) -> 7310 | K37: =SUM(K35:K36) -> 5264 | L37: =SUM(L35:L36) -> 3696 | M37: =SUM(M35:M36) -> 2890
F39: Tarifas Semestrales
F40: Prima de Titular : | H40: n/a | I40: =VLOOKUP($M$16,Tablas!$A$173:$H$196,4,TRUE) -> 5576.13 | J40: =VLOOKUP($M$16,Tablas!$A$173:$H$196,5,TRUE) -> 3834.55 | K40: =VLOOKUP($M$16,Tablas!$A$173:$H$196,6,TRUE) -> 2630.92 | L40: =VLOOKUP($M$16,Tablas!$A$173:$H$196,7,TRUE) -> 1799.88 | M40: =VLOOKUP($M$16,Tablas!$A$173:$H$196,8,TRUE) -> 1372.7
F41: Prima de Cónyuge | H41: n/a | I41: =IF($J$16=1,0,(VLOOKUP($M$18,Tablas!$A$173:$H$196,4,TRUE))) -> 0 | J41: =IF($J$16=1,0,(VLOOKUP($M$18,Tablas!$A$173:$H$196,5,TRUE))) -> 0 | K41: =IF($J$16=1,0,(VLOOKUP($M$18,Tablas!$A$173:$H$196,6,TRUE))) -> 0 | L41: =IF($J$16=1,0,(VLOOKUP($M$18,Tablas!$A$173:$H$196,7,TRUE))) -> 0 | M41: =IF($J$16=1,0,(VLOOKUP($M$18,Tablas!$A$173:$H$196,8,TRUE))) -> 0
F42: Primas Hijos : | H42: n/a | I42: =IF($J$18=0,0,(VLOOKUP($J$18,Tablas!$A$197:$H$199,4,TRUE))) -> 0 | J42: =IF($J$18=0,0,(VLOOKUP($J$18,Tablas!$A$197:$H$199,5,TRUE))) -> 0 | K42: =IF($J$18=0,0,(VLOOKUP($J$18,Tablas!$A$197:$H$199,6,TRUE))) -> 0 | L42: =IF($J$18=0,0,(VLOOKUP($J$18,Tablas!$A$197:$H$199,7,TRUE))) -> 0 | M42: =IF($J$18=0,0,(VLOOKUP($J$18,Tablas!$A$197:$H$199,8,TRUE))) -> 0
F43: Prima Rider Complic. Maternidad | H43: n/a | I43: =+IF($I$20=FALSE,0,Tablas!D$200) -> 0 | J43: =+IF($I$20=FALSE,0,Tablas!E$200) -> 0 | K43: =+IF($I$20=FALSE,0,Tablas!F$200) -> 119.25 | L43: =+IF($I$20=FALSE,0,Tablas!G$200) -> 119.25 | M43: =+IF($I$20=FALSE,0,Tablas!H$200) -> 119.25
F44: TOTAL PRIMA NETA : | H44: n/a | I44: =SUM(I40:I43) -> 5576.13 | J44: =SUM(J40:J43) -> 3834.55 | K44: =SUM(K40:K43) -> 2750.17 | L44: =SUM(L40:L43) -> 1919.13 | M44: =SUM(M40:M43) -> 1491.95
F45: Costo Administrativo Anual : | H45: n/a | I45: 75 | J45: 75 | K45: 75 | L45: 75 | M45: 75
F46: GRAN TOTAL (1ra Cuota) : | H46: n/a | I46: =SUM(I44:I45) -> 5651.13 | J46: =SUM(J44:J45) -> 3909.55 | K46: =SUM(K44:K45) -> 2825.17 | L46: =SUM(L44:L45) -> 1994.13 | M46: =SUM(M44:M45) -> 1566.95
F47: GRAN TOTAL (2da Cuota) : | H47: n/a | I47: =I44 -> 5576.13 | J47: =J44 -> 3834.55 | K47: 2750.17 | L47: 1919.13 | M47: 1491.95
F48: Tarifas en US $ - Válidas desde 01 enero 2023
F50: Este presupuesto solamente tiene carácter informativo y en ningún momento expresa compromiso legal para suministrarle cobertura de seguro. La emisión de una póliza de seguro Bupa está sujeta a todas las evaluaciones de riesgo por parte de Bupa y a la recepción de todos los pagos de prima requeridos.

Sheet Advantage (Mundial)
C10: Cotización de Seguro Médico Internacional - Bupa ADVANTAGE Care
H12: =+'INGRESO DE DATOS'!$D$12 -> NOMBRE COMPLETO
H14: =+'INGRESO DE DATOS'!$D$21 -> AGENCIA
J16: =+'INGRESO DE DATOS'!$G$14 -> 1 | M16: =+'INGRESO DE DATOS'!$G$16 -> 18
F17: FECHA DE COTIZACION :
F18: =NOW() -> 2023-08-16T11:14:18.050 | J18: =+'INGRESO DE DATOS'!$J$14 -> 0 | M18: =+'INGRESO DE DATOS'!$J$16 -> 18
I20: FALSE | K20: COMPLICACIONES DE MATERNIDAD
I22: TRUE | K22: TRASPLANTE DE ORGANOS
F25: Deducibles | H25: PLAN 1 | I25: PLAN 2 | J25: PLAN 3 | K25: PLAN 4 | L25: PLAN 5 | M25: PLAN 6
F26: Dentro del pais de residencia | H26: n/a | I26: 1000 | J26: 2000 | K26: 5000 | L26: 10000 | M26: 20000
F27: Fuera del pais de residencia | H27: n/a | I27: 2000 | J27: 3000 | K27: 5000 | L27: 10000 | M27: 20000
F30: Tarifas Anuales
F31: Prima de Titular : | H31: n/a | I31: =VLOOKUP($M$16,Tablas!$A$274:$H$297,4,TRUE) -> 6999 | J31: =VLOOKUP($M$16,Tablas!$A$274:$H$297,5,TRUE) -> 5266 | K31: =VLOOKUP($M$16,Tablas!$A$274:$H$297,6,TRUE) -> 3872 | L31: =VLOOKUP($M$16,Tablas!$A$274:$H$297,7,TRUE) -> 2890 | M31: =VLOOKUP($M$16,Tablas!$A$274:$H$297,8,TRUE) -> 2289
F32: Prima de Cónyuge | H32: n/a | I32: =IF($J$16=1,0,(VLOOKUP($M$18,Tablas!$A$274:$H$297,4,TRUE))) -> 0 | J32: =IF($J$16=1,0,(VLOOKUP($M$18,Tablas!$A$274:$H$297,5,TRUE))) -> 0 | K32: =IF($J$16=1,0,(VLOOKUP($M$18,Tablas!$A$274:$H$297,6,TRUE))) -> 0 | L32: =IF($J$16=1,0,(VLOOKUP($M$18,Tablas!$A$274:$H$297,7,TRUE))) -> 0 | M32: =IF($J$16=1,0,(VLOOKUP($M$18,Tablas!$A$274:$H$297,8,TRUE))) -> 0
F33: Primas Hijos : | H33: n/a | I33: =IF($J$18=0,0,(VLOOKUP($J$18,Tablas!$A$298:$H$300,4,TRUE))) -> 0 | J33: =IF($J$18=0,0,(VLOOKUP($J$18,Tablas!$A$298:$H$300,5,TRUE))) -> 0 | K33: =IF($J$18=0,0,(VLOOKUP($J$18,Tablas!$A$298:$H$300,6,TRUE))) -> 0 | L33: =IF($J$18=0,0,(VLOOKUP($J$18,Tablas!$A$298:$H$300,7,TRUE))) -> 0 | M33: =IF($J$18=0,0,(VLOOKUP($J$18,Tablas!$A$298:$H$300,8,TRUE))) -> 0
F34: Prima Rider Complic. Maternidad | H34: n/a | I34: =+IF($I$20=FALSE,0,Tablas!D$301) -> 0 | J34: =+IF($I$20=FALSE,0,Tablas!E$301) -> 0 | K34: =+IF($I$20=FALSE,0,Tablas!F$301) -> 0 | L34: =+IF($I$20=FALSE,0,Tablas!G$301) -> 0 | M34: =+IF($I$20=FALSE,0,Tablas!H$301) -> 0
F35: Prima Rider Trasplante Organos | H35: n/a | I35: =IF($I$22=FALSE,0,Tablas!D$302) -> 300 | J35: =IF($I$22=FALSE,0,Tablas!E$302) -> 300 | K35: =IF($I$22=FALSE,0,Tablas!F$302) -> 300 | L35: =IF($I$22=FALSE,0,Tablas!G$302) -> 300 | M35: =IF($I$22=FALSE,0,Tablas!H$302) -> 300
F36: TOTAL PRIMA NETA : | H36: n/a | I36: =SUM(I31:I35) -> 7299 | J36: 5566 | K36: 4172 | L36: 3190 | M36: 2589
F37: Costo Administrativo Anual : | H37: n/a | I37: 75 | J37: 75 | K37: 75 | L37: 75 | M37: 75
F38: GRAN TOTAL : | H38: n/a | I38: =SUM(I36:I37) -> 7374 | J38: =SUM(J36:J37) -> 5641 | K38: =SUM(K36:K37) -> 4247 | L38: =SUM(L36:L37) -> 3265 | M38: =SUM(M36:M37) -> 2664
F40: Tarifas Semestrales
F41: Prima de Titular : | H41: n/a | I41: =VLOOKUP($M$16,Tablas!$A$307:$H$330,4,TRUE) -> 3709.47 | J41: =VLOOKUP($M$16,Tablas!$A$307:$H$330,5,TRUE) -> 2790.98 | K41: =VLOOKUP($M$16,Tablas!$A$307:$H$330,6,TRUE) -> 2052.16 | L41: =VLOOKUP($M$16,Tablas!$A$307:$H$330,7,TRUE) -> 1531.7 | M41: =VLOOKUP($M$16,Tablas!$A$307:$H$330,8,TRUE) -> 1213.17
F42: Prima de Cónyuge | H42: n/a | I42: =IF($J$16=1,0,(VLOOKUP($M$18,Tablas!$A$307:$H$330,4,TRUE))) -> 0 | J42: =IF($J$16=1,0,(VLOOKUP($M$18,Tablas!$A$307:$H$330,5,TRUE))) -> 0 | K42: =IF($J$16=1,0,(VLOOKUP($M$18,Tablas!$A$307:$H$330,6,TRUE))) -> 0 | L42: =IF($J$16=1,0,(VLOOKUP($M$18,Tablas!$A$307:$H$330,7,TRUE))) -> 0 | M42: =IF($J$16=1,0,(VLOOKUP($M$18,Tablas!$A$307:$H$330,8,TRUE))) -> 0
F43: Primas Hijos : | H43: n/a | I43: =IF($J$18=0,0,(VLOOKUP($J$18,Tablas!$A$331:$H$333,4,TRUE))) -> 0 | J43: =IF($J$18=0,0,(VLOOKUP($J$18,Tablas!$A$331:$H$333,5,TRUE))) -> 0 | K43: =IF($J$18=0,0,(VLOOKUP($J$18,Tablas!$A$331:$H$333,6,TRUE))) -> 0 | L43: =IF($J$18=0,0,(VLOOKUP($J$18,Tablas!$A$331:$H$333,7,TRUE))) -> 0 | M43: =IF($J$18=0,0,(VLOOKUP($J$18,Tablas!$A$331:$H$333,8,TRUE))) -> 0
F44: Prima Rider Complic. Maternidad | H44: n/a | I44: =+IF($I$20=FALSE,0,Tablas!D$334) -> 0 | J44: =+IF($I$20=FALSE,0,Tablas!E$334) -> 0 | K44: =+IF($I$20=FALSE,0,Tablas!F$334) -> 0 | L44: =+IF($I$20=FALSE,0,Tablas!G$334) -> 0 | M44: =+IF($I$20=FALSE,0,Tablas!H$334) -> 0
F45: Prima Rider Trasplante Organos | H45: n/a | I45: =IF($I$22=FALSE,0,Tablas!D$335) -> 159 | J45: =IF($I$22=FALSE,0,Tablas!E$335) -> 159 | K45: =IF($I$22=FALSE,0,Tablas!F$335) -> 159 | L45: =IF($I$22=FALSE,0,Tablas!G$335) -> 159 | M45: =IF($I$22=FALSE,0,Tablas!H$335) -> 159
F46: TOTAL PRIMA NETA : | H46: n/a | I46: =SUM(I41:I45) -> 3868.47 | J46: 2949.98 | K46: 2211.16 | L46: 1690.7 | M46: 1372.17
F47: Costo Administrativo Anual : | H47: n/a | I47: 75 | J47: 75 | K47: 75 | L47: 75 | M47: 75
F48: GRAN TOTAL (1ra Cuota) : | H48: n/a | I48: =SUM(I46:I47) -> 3943.47 | J48: =SUM(J46:J47) -> 3024.98 | K48: =SUM(K46:K47) -> 2286.16 | L48: =SUM(L46:L47) -> 1765.7 | M48: =SUM(M46:M47) -> 1447.17
F49: GRAN TOTAL (2da Cuota) : | H49: n/a | I49: =I46 -> 3868.47 | J49: =J46 -> 2949.98 | K49: 2211.16 | L49: 1690.7 | M49: 1372.17
F50: Tarifas en US $ - Válidas desde 01 enero 2023
F52: Este presupuesto solamente tiene carácter informativo y en ningún momento expresa compromiso legal para suministrarle cobertura de seguro. La emisión de una póliza de seguro Bupa está sujeta a todas las evaluaciones de riesgo por parte de Bupa y a la recepción de todos los pagos de prima requeridos.

Sheet Advantage (LA) (hidden)
A10: Cotización de Seguro Médico Internacional - Bupa ADVANTAGE Care (cobertura solo Latinoamérica)
A12: Bupa Advantage Care (cobertura solo en Latinoamérica) | H12: =+'INGRESO DE DATOS'!$D$12 -> NOMBRE COMPLETO
A13: Cobertura Máxima anual | C13: US $ 3,500,000
A14: Cobertura Geografica | C14: Limitada a Latinoamérica excluyendo México | H14: =+'INGRESO DE DATOS'!$D$21 -> AGENCIA
A15: Condiciones médicas cubiertas | C15: Todas las condiciones médicas
A16: Redes de proveedores | C16: Red de Proveedores "Bupa Advantage" | J16: =+'INGRESO DE DATOS'!$G$14 -> 1 | M16: =+'INGRESO DE DATOS'!$G$16 -> 18
A17: Opciones fuera de la Red | C17: NO, solo en casos de emergencia | F17: FECHA DE COTIZACION :
A18: Requiere preautorización | C18: SI, 30% de penalización por omitir prenotificación | F18: =NOW() -> 2023-08-16T11:14:18.050 | J18: =+'INGRESO DE DATOS'!$J$14 -> 0 | M18: =+'INGRESO DE DATOS'!$J$16 -> 18
A20: Número máximo de días de hospitalización | C20: Ilimitado | I20: TRUE | K20: COMPLICACIONES DE MATERNIDAD
A21: Habitación y alimentación | C21: 100% dentro de Red Bupa
C22: "UCR" para L.A. en emergencias fuera de Red Bupa | I22: TRUE | K22: TRASPLANTE DE ORGANOS
A23: Cuidados Intensivos | C23: 100% dentro de Red Bupa
C24: "UCR" para L.A. en emergencias fuera de Red Bupa
A25: Cobertura de Maternidad | C25: $5,000 (Excepto planes 4,5, y 6) | F25: Deducibles | H25: PLAN 1 | I25: PLAN 2 | J25: PLAN 3 | K25: PLAN 4 | L25: PLAN 5 | M25: PLAN 6
A26: Cobertura Provisional de Recién Nacido | C26: $30,000 por los primeros 90 días | F26: Dentro del pais de residencia | H26: n/a | I26: 1000 | J26: 2000 | K26: 5000 | L26: 10000 | M26: 20000
A27: Cuidado del Recién Nacido saludable | C27: Ya incluída dentro del beneficio de Maternidad | F27: Fuera del pais de residencia | H27: n/a | I27: 2000 | J27: 3000 | K27: 5000 | L27: 10000 | M27: 20000
A28: Cobertura de Complicaciones de Maternidad | C28: Disponible a través de cobertura opcional adicional
A29: Trasplante de Organos | C29: $1,000,000 de por vida, por diagnóstico
A30: Condiciones congénitas y hereditarias | C30: <18 años $300,000 de por vida; >=18 al 100% | F30: Tarifas Anuales
A31: Coberturas opcionales (Riders) | C31: Complicaciones de Maternidad por $500,000 | F31: Prima de Titular : | H31: n/a | I31: =VLOOKUP($M$16,Tablas!$A$341:$H$364,4,TRUE) -> 5419 | J31: =VLOOKUP($M$16,Tablas!$A$341:$H$364,5,TRUE) -> 4070 | K31: =VLOOKUP($M$16,Tablas!$A$341:$H$364,6,TRUE) -> 2986 | L31: =VLOOKUP($M$16,Tablas!$A$341:$H$364,7,TRUE) -> 2227 | M31: =VLOOKUP($M$16,Tablas!$A$341:$H$364,8,TRUE) -> 1756
C32: Trasplante de órganos por $ 300,000 adicionales | F32: Prima de Cónyuge | H32: n/a | I32: =IF($J$16=1,0,(VLOOKUP($M$18,Tablas!$A$341:$H$364,4,TRUE))) -> 0 | J32: =IF($J$16=1,0,(VLOOKUP($M$18,Tablas!$A$341:$H$364,5,TRUE))) -> 0 | K32: =IF($J$16=1,0,(VLOOKUP($M$18,Tablas!$A$341:$H$364,6,TRUE))) -> 0 | L32: =IF($J$16=1,0,(VLOOKUP($M$18,Tablas!$A$341:$H$364,7,TRUE))) -> 0 | M32: =IF($J$16=1,0,(VLOOKUP($M$18,Tablas!$A$341:$H$364,8,TRUE))) -> 0
A33: Acompañamiento de menores hospitalizados | C33: $300 por día | F33: Primas Hijos : | H33: n/a | I33: =IF($J$18=0,0,(VLOOKUP($J$18,Tablas!$A$365:$H$367,4,TRUE))) -> 0 | J33: =IF($J$18=0,0,(VLOOKUP($J$18,Tablas!$A$365:$H$367,5,TRUE))) -> 0 | K33: =IF($J$18=0,0,(VLOOKUP($J$18,Tablas!$A$365:$H$367,6,TRUE))) -> 0 | L33: =IF($J$18=0,0,(VLOOKUP($J$18,Tablas!$A$365:$H$367,7,TRUE))) -> 0 | M33: =IF($J$18=0,0,(VLOOKUP($J$18,Tablas!$A$365:$H$367,8,TRUE))) -> 0
A34: Ambulancia aérea | C34: $100,000 por año y ticket aéreo de retorno | F34: Prima Rider Complic. Maternidad | H34: n/a | I34: =+IF($I$20=FALSE,0,Tablas!D$368) -> 0 | J34: =+IF($I$20=FALSE,0,Tablas!E$368) -> 0 | K34: =+IF($I$20=FALSE,0,Tablas!F$368) -> 0 | L34: =+IF($I$20=FALSE,0,Tablas!G$368) -> 0 | M34: =+IF($I$20=FALSE,0,Tablas!H$368) -> 0
A35: Repatriación restos mortales | C35: 1 | F35: Prima Rider Trasplante Organos | H35: n/a | I35: =IF($I$22=FALSE,0,Tablas!D$369) -> 0 | J35: =IF($I$22=FALSE,0,Tablas!E$369) -> 0 | K35: =IF($I$22=FALSE,0,Tablas!F$369) -> 0 | L35: =IF($I$22=FALSE,0,Tablas!G$369) -> 0 | M35: =IF($I$22=FALSE,0,Tablas!H$369) -> 0
A36: Medicamentos por receta | C36: $6,000 por Asegurado, por año póliza | F36: TOTAL PRIMA NETA : | H36: n/a | I36: =SUM(I31:I35) -> 5419 | J36: 4070 | K36: 2986 | L36: 2227 | M36: 1756
A37: Almacenamiento de sangre de cordon umbilical | C37: $500 (Excepto planes 4,5, y 6) | F37: Costo Administrativo Anual : | H37: n/a | I37: 75 | J37: 75 | K37: 75 | L37: 75 | M37: 75
F38: GRAN TOTAL : | H38: n/a | I38: =SUM(I36:I37) -> 5494 | J38: =SUM(J36:J37) -> 4145 | K38: =SUM(K36:K37) -> 3061 | L38: =SUM(L36:L37) -> 2302 | M38: =SUM(M36:M37) -> 1831
A39: Atención médica en el hogar | C39: 100% de usual/acostumbrado y razonable
A40: Rehabilitación | C40: 100% de usual/acostumbrado y razonable | F40: Tarifas Semestrales
A41: Residencia y cuidados paliativos | C41: 100% de usual/acostumbrado y razonable | F41: Prima de Titular : | H41: n/a | I41: =VLOOKUP($M$16,Tablas!$A$374:$H$397,4,TRUE) -> 2872.07 | J41: =VLOOKUP($M$16,Tablas!$A$374:$H$397,5,TRUE) -> 2157.1 | K41: =VLOOKUP($M$16,Tablas!$A$374:$H$397,6,TRUE) -> 1582.58 | L41: =VLOOKUP($M$16,Tablas!$A$374:$H$397,7,TRUE) -> 1180.31 | M41: =VLOOKUP($M$16,Tablas!$A$374:$H$397,8,TRUE) -> 930.68
A42: Cobertura de actividades peligrosas | C42: 1 | F42: Prima de Cónyuge | H42: n/a | I42: =IF($J$16=1,0,(VLOOKUP($M$18,Tablas!$A$374:$H$397,4,TRUE))) -> 0 | J42: =IF($J$16=1,0,(VLOOKUP($M$18,Tablas!$A$374:$H$397,5,TRUE))) -> 0 | K42: =IF($J$16=1,0,(VLOOKUP($M$18,Tablas!$A$374:$H$397,6,TRUE))) -> 0 | L42: =IF($J$16=1,0,(VLOOKUP($M$18,Tablas!$A$374:$H$397,7,TRUE))) -> 0 | M42: =IF($J$16=1,0,(VLOOKUP($M$18,Tablas!$A$374:$H$397,8,TRUE))) -> 0
A43: Chequeos generales de rutina | C43: Hasta US$150 por año póliza.Sin deducible | F43: Primas Hijos : | H43: n/a | I43: =IF($J$18=0,0,(VLOOKUP($J$18,Tablas!$A$398:$H$400,4,TRUE))) -> 0 | J43: =IF($J$18=0,0,(VLOOKUP($J$18,Tablas!$A$398:$H$400,5,TRUE))) -> 0 | K43: =IF($J$18=0,0,(VLOOKUP($J$18,Tablas!$A$398:$H$400,6,TRUE))) -> 0 | L43: =IF($J$18=0,0,(VLOOKUP($J$18,Tablas!$A$398:$H$400,7,TRUE))) -> 0 | M43: =IF($J$18=0,0,(VLOOKUP($J$18,Tablas!$A$398:$H$400,8,TRUE))) -> 0
A44: Cobertura de VIH, SIDA, CAS | C44: Solo como efecto de transfusión de sangre | F44: Prima Rider Complic. Maternidad | H44: n/a | I44: =+IF($I$20=FALSE,0,Tablas!D$401) -> 0 | J44: =+IF($I$20=FALSE,0,Tablas!E$401) -> 0 | K44: =+IF($I$20=FALSE,0,Tablas!F$401) -> 0 | L44: =+IF($I$20=FALSE,0,Tablas!G$401) -> 0 | M44: =+IF($I$20=FALSE,0,Tablas!H$401) -> 0
A45: Cobertura de brazos y piernas artificiales | C45: $30,000 por año y hasta $120,000 de por vida | F45: Prima Rider Trasplante Organos | H45: n/a | I45: =IF($I$22=FALSE,0,Tablas!D$402) -> 0 | J45: =IF($I$22=FALSE,0,Tablas!E$402) -> 0 | K45: =IF($I$22=FALSE,0,Tablas!F$402) -> 0 | L45: =IF($I$22=FALSE,0,Tablas!G$402) -> 0 | M45: =IF($I$22=FALSE,0,Tablas!H$402) -> 0
A46: Cobertura extendida para dependientes en caso de muerte de asegurado principal | C46: 2 años sin costo | F46: TOTAL PRIMA NETA : | H46: n/a | I46: =SUM(I41:I45) -> 2872.07 | J46: 2157.1 | K46: 1582.58 | L46: 1180.31 | M46: 930.68
F47: Costo Administrativo Anual : | H47: n/a | I47: 75 | J47: 75 | K47: 75 | L47: 75 | M47: 75
F48: GRAN TOTAL (1ra Cuota) : | H48: n/a | I48: =SUM(I46:I47) -> 2947.07 | J48: =SUM(J46:J47) -> 2232.1 | K48: =SUM(K46:K47) -> 1657.58 | L48: =SUM(L46:L47) -> 1255.31 | M48: =SUM(M46:M47) -> 1005.68
F49: GRAN TOTAL (2da Cuota) : | H49: n/a | I49: =I46 -> 2872.07 | J49: =J46 -> 2157.1 | K49: 1582.58 | L49: 1180.31 | M49: 930.68
F50: Tarifas en US $ - Válidas desde 01 Ene 2013

Sheet Secure
C10: Cotización de Seguro Médico Internacional - Bupa SECURE Care
H12: =+'INGRESO DE DATOS'!$D$12 -> NOMBRE COMPLETO
H14: =+'INGRESO DE DATOS'!$D$21 -> AGENCIA
J16: =+'INGRESO DE DATOS'!$G$14 -> 1 | M16: =+'INGRESO DE DATOS'!$G$16 -> 18
F17: FECHA DE COTIZACION :
F18: =NOW() -> 2023-08-16T11:14:18.050 | J18: =+'INGRESO DE DATOS'!$J$14 -> 0 | M18: =+'INGRESO DE DATOS'!$J$16 -> 18
I20: FALSE | K20: COMPLICACIONES DE MATERNIDAD
I22: TRUE | K22: TRASPLANTE DE ORGANOS
F25: Deducibles | H25: PLAN 1 | I25: PLAN 2 | J25: PLAN 3 | K25: PLAN 4 | L25: PLAN 5 | M25: PLAN 6
F26: Dentro del pais de residencia | H26: n/a | I26: 1000 | J26: 2000 | K26: 5000 | L26: 10000 | M26: 20000
F27: Fuera del pais de residencia | H27: n/a | I27: 2000 | J27: 3000 | K27: 5000 | L27: 10000 | M27: 20000
F30: Tarifas Anuales
F31: Prima de Titular : | H31: n/a | I31: =VLOOKUP($M$16,Tablas!$A$408:$H$431,4,TRUE) -> 5309 | J31: =VLOOKUP($M$16,Tablas!$A$408:$H$431,5,TRUE) -> 4166 | K31: =VLOOKUP($M$16,Tablas!$A$408:$H$431,6,TRUE) -> 3074 | L31: =VLOOKUP($M$16,Tablas!$A$408:$H$431,7,TRUE) -> 2591 | M31: =VLOOKUP($M$16,Tablas!$A$408:$H$431,8,TRUE) -> 1964
F32: Prima de Cónyuge | H32: n/a | I32: =IF($J$16=1,0,(VLOOKUP($M$18,Tablas!$A$408:$H$431,4,TRUE))) -> 0 | J32: =IF($J$16=1,0,(VLOOKUP($M$18,Tablas!$A$408:$H$431,5,TRUE))) -> 0 | K32: =IF($J$16=1,0,(VLOOKUP($M$18,Tablas!$A$408:$H$431,6,TRUE))) -> 0 | L32: =IF($J$16=1,0,(VLOOKUP($M$18,Tablas!$A$408:$H$431,7,TRUE))) -> 0 | M32: =IF($J$16=1,0,(VLOOKUP($M$18,Tablas!$A$408:$H$431,8,TRUE))) -> 0
F33: Primas Hijos : | H33: n/a | I33: =IF($J$18=0,0,(VLOOKUP($J$18,Tablas!$A$432:$H$434,4,TRUE))) -> 0 | J33: =IF($J$18=0,0,(VLOOKUP($J$18,Tablas!$A$432:$H$434,5,TRUE))) -> 0 | K33: =IF($J$18=0,0,(VLOOKUP($J$18,Tablas!$A$432:$H$434,6,TRUE))) -> 0 | L33: =IF($J$18=0,0,(VLOOKUP($J$18,Tablas!$A$432:$H$434,7,TRUE))) -> 0 | M33: =IF($J$18=0,0,(VLOOKUP($J$18,Tablas!$A$432:$H$434,8,TRUE))) -> 0
F34: Prima Rider Complic. Maternidad | H34: n/a | I34: =+IF($I$20=FALSE,0,Tablas!D$435) -> 0 | J34: =+IF($I$20=FALSE,0,Tablas!E$435) -> 0 | K34: =+IF($I$20=FALSE,0,Tablas!F$435) -> 0 | L34: =+IF($I$20=FALSE,0,Tablas!G$435) -> 0 | M34: =+IF($I$20=FALSE,0,Tablas!H$435) -> 0
F35: Prima Rider Trasplante Organos | H35: n/a | I35: =IF($I$22=FALSE,0,Tablas!D$436) -> 300 | J35: =IF($I$22=FALSE,0,Tablas!E$436) -> 300 | K35: =IF($I$22=FALSE,0,Tablas!F$436) -> 300 | L35: =IF($I$22=FALSE,0,Tablas!G$436) -> 300 | M35: =IF($I$22=FALSE,0,Tablas!H$436) -> 300
F36: TOTAL PRIMA NETA : | H36: n/a | I36: =SUM(I31:I35) -> 5609 | J36: 4466 | K36: 3374 | L36: 2891 | M36: 2264
F37: Costo Administrativo Anual : | H37: n/a | I37: 75 | J37: 75 | K37: 75 | L37: 75 | M37: 75
F38: GRAN TOTAL : | H38: n/a | I38: =SUM(I36:I37) -> 5684 | J38: =SUM(J36:J37) -> 4541 | K38: =SUM(K36:K37) -> 3449 | L38: =SUM(L36:L37) -> 2966 | M38: =SUM(M36:M37) -> 2339
F40: Tarifas Semestrales
F41: Prima de Titular : | H41: n/a | I41: =VLOOKUP($M$16,Tablas!$A$441:$H$464,4,TRUE) -> 2813.77 | J41: =VLOOKUP($M$16,Tablas!$A$441:$H$464,5,TRUE) -> 2207.98 | K41: =VLOOKUP($M$16,Tablas!$A$441:$H$464,6,TRUE) -> 1629.22 | L41: =VLOOKUP($M$16,Tablas!$A$441:$H$464,7,TRUE) -> 1373.23 | M41: =VLOOKUP($M$16,Tablas!$A$441:$H$464,8,TRUE) -> 1040.92
F42: Prima de Cónyuge | H42: n/a | I42: =IF($J$16=1,0,(VLOOKUP($M$18,Tablas!$A$441:$H$464,4,TRUE))) -> 0 | J42: =IF($J$16=1,0,(VLOOKUP($M$18,Tablas!$A$441:$H$464,5,TRUE))) -> 0 | K42: =IF($J$16=1,0,(VLOOKUP($M$18,Tablas!$A$441:$H$464,6,TRUE))) -> 0 | L42: =IF($J$16=1,0,(VLOOKUP($M$18,Tablas!$A$441:$H$464,7,TRUE))) -> 0 | M42: =IF($J$16=1,0,(VLOOKUP($M$18,Tablas!$A$441:$H$464,8,TRUE))) -> 0
F43: Primas Hijos : | H43: n/a | I43: =IF($J$18=0,0,(VLOOKUP($J$18,Tablas!$A$465:$H$467,4,TRUE))) -> 0 | J43: =IF($J$18=0,0,(VLOOKUP($J$18,Tablas!$A$465:$H$467,5,TRUE))) -> 0 | K43: =IF($J$18=0,0,(VLOOKUP($J$18,Tablas!$A$465:$H$467,6,TRUE))) -> 0 | L43: =IF($J$18=0,0,(VLOOKUP($J$18,Tablas!$A$465:$H$467,7,TRUE))) -> 0 | M43: =IF($J$18=0,0,(VLOOKUP($J$18,Tablas!$A$465:$H$467,8,TRUE))) -> 0
F44: Prima Rider Complic. Maternidad | H44: n/a | I44: =+IF($I$20=FALSE,0,Tablas!D$468) -> 0 | J44: =+IF($I$20=FALSE,0,Tablas!E$468) -> 0 | K44: =+IF($I$20=FALSE,0,Tablas!F$468) -> 0 | L44: =+IF($I$20=FALSE,0,Tablas!G$468) -> 0 | M44: =+IF($I$20=FALSE,0,Tablas!H$468) -> 0
F45: Prima Rider Trasplante Organos | H45: n/a | I45: =IF($I$22=FALSE,0,Tablas!D$469) -> 159 | J45: =IF($I$22=FALSE,0,Tablas!E$469) -> 159 | K45: =IF($I$22=FALSE,0,Tablas!F$469) -> 159 | L45: =IF($I$22=FALSE,0,Tablas!G$469) -> 159 | M45: =IF($I$22=FALSE,0,Tablas!H$469) -> 159
F46: TOTAL PRIMA NETA : | H46: n/a | I46: =SUM(I41:I45) -> 2972.77 | J46: 2366.98 | K46: 1788.22 | L46: 1532.23 | M46: 1199.92
F47: Costo Administrativo Anual : | H47: n/a | I47: 75 | J47: 75 | K47: 75 | L47: 75 | M47: 75
F48: GRAN TOTAL (1ra Cuota) : | H48: n/a | I48: =SUM(I46:I47) -> 3047.77 | J48: =SUM(J46:J47) -> 2441.98 | K48: =SUM(K46:K47) -> 1863.22 | L48: =SUM(L46:L47) -> 1607.23 | M48: =SUM(M46:M47) -> 1274.92
F49: GRAN TOTAL (2da Cuota) : | H49: n/a | I49: =I46 -> 2972.77 | J49: =J46 -> 2366.98 | K49: 1788.22 | L49: 1532.23 | M49: 1199.92
F50: Tarifas en US $ - Válidas desde 01 enero 2023
F52: Este presupuesto solamente tiene carácter informativo y en ningún momento expresa compromiso legal para suministrarle cobertura de seguro. La emisión de una póliza de seguro Bupa está sujeta a todas las evaluaciones de riesgo por parte de Bupa y a la recepción de todos los pagos de prima requeridos.

Sheet Essential
C10: Cotización de Seguro Médico Internacional - Bupa ESSENTIAL Care
H12: =+'INGRESO DE DATOS'!$D$12 -> NOMBRE COMPLETO
H14: =+'INGRESO DE DATOS'!$D$21 -> AGENCIA
J16: =+'INGRESO DE DATOS'!$G$14 -> 1 | M16: =+'INGRESO DE DATOS'!$G$16 -> 18
F17: FECHA DE COTIZACION :
F18: =NOW() -> 2023-08-16T11:14:18.050 | J18: =+'INGRESO DE DATOS'!$J$14 -> 0 | M18: =+'INGRESO DE DATOS'!$J$16 -> 18
I20: FALSE | K20: COMPLICACIONES DE MATERNIDAD
I22: TRUE | K22: TRASPLANTE DE ORGANOS
F25: Deducibles | H25: PLAN 1 | I25: PLAN 2 | J25: PLAN 3 | K25: PLAN 4 | L25: PLAN 5 | M25: PLAN 6
F26: Dentro del pais de residencia | H26: n/a | I26: 1000 | J26: 2000 | K26: 5000 | L26: 10000 | M26: 20000
F27: Fuera del pais de residencia | H27: n/a | I27: 2000 | J27: 3000 | K27: 5000 | L27: 10000 | M27: 20000
F30: Tarifas Anuales
F31: Prima de Titular : | H31: n/a | I31: =VLOOKUP($M$16,Tablas!$A$475:$H$498,4,TRUE) -> 4501 | J31: =VLOOKUP($M$16,Tablas!$A$475:$H$498,5,TRUE) -> 3528 | K31: =VLOOKUP($M$16,Tablas!$A$475:$H$498,6,TRUE) -> 2603 | L31: =VLOOKUP($M$16,Tablas!$A$475:$H$498,7,TRUE) -> 2191 | M31: =VLOOKUP($M$16,Tablas!$A$475:$H$498,8,TRUE) -> 1659
F32: Prima de Cónyuge | H32: n/a | I32: =IF($J$16=1,0,(VLOOKUP($M$18,Tablas!$A$475:$H$498,4,TRUE))) -> 0 | J32: =IF($J$16=1,0,(VLOOKUP($M$18,Tablas!$A$475:$H$498,5,TRUE))) -> 0 | K32: =IF($J$16=1,0,(VLOOKUP($M$18,Tablas!$A$475:$H$498,6,TRUE))) -> 0 | L32: =IF($J$16=1,0,(VLOOKUP($M$18,Tablas!$A$475:$H$498,7,TRUE))) -> 0 | M32: =IF($J$16=1,0,(VLOOKUP($M$18,Tablas!$A$475:$H$498,8,TRUE))) -> 0
F33: Primas Hijos : | H33: n/a | I33: =IF($J$18=0,0,(VLOOKUP($J$18,Tablas!$A$499:$H$501,4,TRUE))) -> 0 | J33: =IF($J$18=0,0,(VLOOKUP($J$18,Tablas!$A$499:$H$501,5,TRUE))) -> 0 | K33: =IF($J$18=0,0,(VLOOKUP($J$18,Tablas!$A$499:$H$501,6,TRUE))) -> 0 | L33: =IF($J$18=0,0,(VLOOKUP($J$18,Tablas!$A$499:$H$501,7,TRUE))) -> 0 | M33: =IF($J$18=0,0,(VLOOKUP($J$18,Tablas!$A$499:$H$501,8,TRUE))) -> 0
F34: Prima Rider Complic. Maternidad | H34: n/a | I34: =+IF($I$20=FALSE,0,Tablas!D$502) -> 0 | J34: =+IF($I$20=FALSE,0,Tablas!E$502) -> 0 | K34: =+IF($I$20=FALSE,0,Tablas!F$502) -> 0 | L34: =+IF($I$20=FALSE,0,Tablas!G$502) -> 0 | M34: =+IF($I$20=FALSE,0,Tablas!H$502) -> 0
F35: Prima Rider Trasplante Organos | H35: n/a | I35: =IF($I$22=FALSE,0,Tablas!D$503) -> 300 | J35: =IF($I$22=FALSE,0,Tablas!E$503) -> 300 | K35: =IF($I$22=FALSE,0,Tablas!F$503) -> 300 | L35: =IF($I$22=FALSE,0,Tablas!G$503) -> 300 | M35: =IF($I$22=FALSE,0,Tablas!H$503) -> 300
F36: TOTAL PRIMA NETA : | H36: n/a | I36: =SUM(I31:I35) -> 4801 | J36: 3828 | K36: 2903 | L36: 2491 | M36: 1959
F37: Costo Administrativo Anual : | H37: n/a | I37: 75 | J37: 75 | K37: 75 | L37: 75 | M37: 75
F38: GRAN TOTAL : | H38: n/a | I38: =SUM(I36:I37) -> 4876 | J38: =SUM(J36:J37) -> 3903 | K38: =SUM(K36:K37) -> 2978 | L38: =SUM(L36:L37) -> 2566 | M38: =SUM(M36:M37) -> 2034
F40: Tarifas Semestrales
F41: Prima de Titular : | H41: n/a | I41: =VLOOKUP($M$16,Tablas!$A$508:$H$531,4,TRUE) -> 2385.53 | J41: =VLOOKUP($M$16,Tablas!$A$508:$H$531,5,TRUE) -> 1869.84 | K41: =VLOOKUP($M$16,Tablas!$A$508:$H$531,6,TRUE) -> 1379.59 | L41: =VLOOKUP($M$16,Tablas!$A$508:$H$531,7,TRUE) -> 1161.23 | M41: =VLOOKUP($M$16,Tablas!$A$508:$H$531,8,TRUE) -> 879.27
F42: Prima de Cónyuge | H42: n/a | I42: =IF($J$16=1,0,(VLOOKUP($M$18,Tablas!$A$508:$H$531,4,TRUE))) -> 0 | J42: =IF($J$16=1,0,(VLOOKUP($M$18,Tablas!$A$508:$H$531,5,TRUE))) -> 0 | K42: =IF($J$16=1,0,(VLOOKUP($M$18,Tablas!$A$508:$H$531,6,TRUE))) -> 0 | L42: =IF($J$16=1,0,(VLOOKUP($M$18,Tablas!$A$508:$H$531,7,TRUE))) -> 0 | M42: =IF($J$16=1,0,(VLOOKUP($M$18,Tablas!$A$508:$H$531,8,TRUE))) -> 0
F43: Primas Hijos : | H43: n/a | I43: =IF($J$18=0,0,(VLOOKUP($J$18,Tablas!$A$532:$H$534,4,TRUE))) -> 0 | J43: =IF($J$18=0,0,(VLOOKUP($J$18,Tablas!$A$532:$H$534,5,TRUE))) -> 0 | K43: =IF($J$18=0,0,(VLOOKUP($J$18,Tablas!$A$532:$H$534,6,TRUE))) -> 0 | L43: =IF($J$18=0,0,(VLOOKUP($J$18,Tablas!$A$532:$H$534,7,TRUE))) -> 0 | M43: =IF($J$18=0,0,(VLOOKUP($J$18,Tablas!$A$532:$H$534,8,TRUE))) -> 0
F44: Prima Rider Complic. Maternidad | H44: n/a | I44: =+IF($I$20=FALSE,0,Tablas!D$535) -> 0 | J44: =+IF($I$20=FALSE,0,Tablas!E$535) -> 0 | K44: =+IF($I$20=FALSE,0,Tablas!F$535) -> 0 | L44: =+IF($I$20=FALSE,0,Tablas!G$535) -> 0 | M44: =+IF($I$20=FALSE,0,Tablas!H$535) -> 0
F45: Prima Rider Trasplante Organos | H45: n/a | I45: =IF($I$22=FALSE,0,Tablas!D$536) -> 159 | J45: =IF($I$22=FALSE,0,Tablas!E$536) -> 159 | K45: =IF($I$22=FALSE,0,Tablas!F$536) -> 159 | L45: =IF($I$22=FALSE,0,Tablas!G$536) -> 159 | M45: =IF($I$22=FALSE,0,Tablas!H$536) -> 159
F46: TOTAL PRIMA NETA : | H46: n/a | I46: =SUM(I41:I45) -> 2544.53 | J46: 2028.84 | K46: 1538.59 | L46: 1320.23 | M46: 1038.27
F47: Costo Administrativo Anual : | H47: n/a | I47: 75 | J47: 75 | K47: 75 | L47: 75 | M47: 75
F48: GRAN TOTAL (1ra Cuota) : | H48: n/a | I48: =SUM(I46:I47) -> 2619.53 | J48: =SUM(J46:J47) -> 2103.84 | K48: =SUM(K46:K47) -> 1613.59 | L48: =SUM(L46:L47) -> 1395.23 | M48: =SUM(M46:M47) -> 1113.27
F49: GRAN TOTAL (2da Cuota) : | H49: n/a | I49: =I46 -> 2544.53 | J49: =J46 -> 2028.84 | K49: 1538.59 | L49: 1320.23 | M49: 1038.27
F50: Tarifas en US $ - Válidas desde 01 enero 2021
F52: Este presupuesto solamente tiene carácter informativo y en ningún momento expresa compromiso legal para suministrarle cobertura de seguro. La emisión de una póliza de seguro Bupa está sujeta a todas las evaluaciones de riesgo por parte de Bupa y a la recepción de todos los pagos de prima requeridos.

Sheet Critical
C10: Cotización de Seguro Médico Internacional - Bupa CRITICAL Care
H12: =+'INGRESO DE DATOS'!$D$12 -> NOMBRE COMPLETO
H14: =+'INGRESO DE DATOS'!$D$21 -> AGENCIA
J16: =+'INGRESO DE DATOS'!$G$14 -> 1 | M16: =+'INGRESO DE DATOS'!$G$16 -> 18
F17: FECHA DE COTIZACION :
F18: =NOW() -> 2023-08-16T11:14:18.050 | J18: =+'INGRESO DE DATOS'!$J$14 -> 0 | M18: =+'INGRESO DE DATOS'!$J$16 -> 18
J20: TRUE | M20: =IF(M16>=M18,M16,M18) -> 18
F22: CONDICION CRITICA CUBIERTA | I22: MAXIMO POR AÑO POLIZA | K22: TRASPLANTE DE ORGANOS
F24: Enfermedades neurológicas y accidentes cerebro-vasculares | I24: 150000 | K24: Tipo de trasplante | M24: Máximo Vitalicio
I25: por asegurado por año póliza | M25: por persona
F26: Cirugías cardíacas y angioplastías | I26: 150000 | K26: Corazón | M26: 300000
I27: por asegurado por año póliza | K27: Corazón y Pulmón (simultáneamente) | M27: 300000
F28: Tratamiento de cáncer | I28: 200000 | K28: Pulmón | M28: 250000
I29: por asegurado por año póliza | K29: Pancreas | M29: 250000
F30: Trauma grave (Politraumatismos) | I30: 150000 | K30: Pancreas y Riñón (simultáneamente) | M30: 300000
I31: por asegurado por año póliza | K31: Riñón | M31: 200000
F32: Insuficiencia renal crónica (Diálisis) | I32: 100000 | K32: Hígado | M32: 200000
I33: por asegurado por año póliza | K33: Médula ósea | M33: 250000
F34: Quemaduras graves | I34: 300000 | K34: La cobertura de trasplante de órganos está limitada a la Red de Proveedores para Procedimiento de Trasplante de la Compañía y no se proporcionará cobertura en proveedores fuera de esta Red especializada.
I35: por asegurado por año póliza
F36: Desorden infeccioso grave (Septicemia) | I36: 150000
I37: por asegurado por año póliza
F39: Deducibles | H39: PLAN 1 | I39: PLAN 2 | J39: PLAN 3 | K39: PLAN 4 | L39: PLAN 5 | M39: PLAN 6
F40: Dentro del pais de residencia | H40: 2000 | I40: 3500 | J40: 5000 | K40: 10000 | L40: 20000 | M40: 50000
F41: Fuera del pais de residencia | H41: 2000 | I41: 3500 | J41: 5000 | K41: 10000 | L41: 20000 | M41: 50000
F43: Tarifas Anuales
F44: Prima por plan individual : | H44: =IF((($J$16+$J$18)=1),(VLOOKUP($M$20,Tablas!$A$543:$T$544,3,TRUE)),0) -> 3170 | I44: =IF((($J$16+$J$18)=1),(VLOOKUP($M$20,Tablas!$A$543:$T$544,6,TRUE)),0) -> 2521 | J44: =IF((($J$16+$J$18)=1),(VLOOKUP($M$20,Tablas!$A$543:$T$544,9,TRUE)),0) -> 2160 | K44: =IF((($J$16+$J$18)=1),(VLOOKUP($M$20,Tablas!$A$543:$T$544,12,TRUE)),0) -> 1658 | L44: =IF((($J$16+$J$18)=1),(VLOOKUP($M$20,Tablas!$A$543:$T$544,15,TRUE)),0) -> 1249 | M44: =IF((($J$16+$J$18)=1),(VLOOKUP($M$20,Tablas!$A$543:$T$544,18,TRUE)),0) -> 808
F45: Prima por plan para 2 personas : | H45: =IF((($J$16+$J$18)=2),(VLOOKUP($M$20,Tablas!$A$543:$T$544,4,TRUE)),0) -> 0 | I45: =IF((($J$16+$J$18)=2),(VLOOKUP($M$20,Tablas!$A$543:$T$544,7,TRUE)),0) -> 0 | J45: =IF((($J$16+$J$18)=2),(VLOOKUP($M$20,Tablas!$A$543:$T$544,10,TRUE)),0) -> 0 | K45: =IF((($J$16+$J$18)=2),(VLOOKUP($M$20,Tablas!$A$543:$T$544,13,TRUE)),0) -> 0 | L45: =IF((($J$16+$J$18)=2),(VLOOKUP($M$20,Tablas!$A$543:$T$544,16,TRUE)),0) -> 0 | M45: =IF((($J$16+$J$18)=2),(VLOOKUP($M$20,Tablas!$A$543:$T$544,19,TRUE)),0) -> 0
F46: Prima por plan familiar : | H46: =IF((($J$16+$J$18)>=3),(VLOOKUP($M$20,Tablas!$A$543:$T$544,5,TRUE)),0) -> 0 | I46: =IF((($J$16+$J$18)>=3),(VLOOKUP($M$20,Tablas!$A$543:$T$544,8,TRUE)),0) -> 0 | J46: =IF((($J$16+$J$18)>=3),(VLOOKUP($M$20,Tablas!$A$543:$T$544,11,TRUE)),0) -> 0 | K46: =IF((($J$16+$J$18)>=3),(VLOOKUP($M$20,Tablas!$A$543:$T$544,14,TRUE)),0) -> 0 | L46: =IF((($J$16+$J$18)>=3),(VLOOKUP($M$20,Tablas!$A$543:$T$544,17,TRUE)),0) -> 0 | M46: =IF((($J$16+$J$18)>=3),(VLOOKUP($M$20,Tablas!$A$543:$T$544,20,TRUE)),0) -> 0
F47: TOTAL PRIMA NETA : | H47: =SUM(H44:H46) -> 3170 | I47: =SUM(I44:I46) -> 2521 | J47: 2160 | K47: 1658 | L47: 1249 | M47: 808
F48: Costo Administrativo Anual : | H48: 75 | I48: 75 | J48: 75 | K48: 75 | L48: 75 | M48: 75
F49: GRAN TOTAL : | H49: =SUM(H47:H48) -> 3245 | I49: 2596 | J49: 2235 | K49: 1733 | L49: 1324 | M49: 883
F50: Tarifas en US $ - Válidas desde 01 enero 2023
F53: Este presupuesto solamente tiene carácter informativo y en ningún momento expresa compromiso legal para suministrarle cobertura de seguro. La emisión de una póliza de seguro Bupa está sujeta a todas las evaluaciones de riesgo por parte de Bupa y a la recepción de todos los pagos de prima requeridos.

Sheet Resumen tarifas anuales
C12: Cotización de Seguro Médico Internacional - BUPA CARE
C14: =+'INGRESO DE DATOS'!$D$12 -> NOMBRE COMPLETO
C16: =+'INGRESO DE DATOS'!$D$21 -> AGENCIA
E18: =+'INGRESO DE DATOS'!$G$14 -> 1 | H18: =+'INGRESO DE DATOS'!$G$16 -> 18
A19: FECHA DE COTIZACION :
A20: =NOW() -> 2023-08-16T11:14:18.050 | E20: =+'INGRESO DE DATOS'!$J$14 -> 0 | H20: =+'INGRESO DE DATOS'!$J$16 -> 18
A22: Deducibles | C22: PLAN 1 | D22: PLAN 2 | E22: PLAN 3 | F22: PLAN 4 | G22: PLAN 5 | H22: PLAN 6
A23: Dentro del pais de residencia | C23: n/a | D23: 1000 | E23: 2000 | F23: 5000 | G23: 10000 | H23: 20000
A24: Fuera del pais de residencia | C24: n/a | D24: 2000 | E24: 3000 | F24: 5000 | G24: 10000 | H24: 20000
A26: PRODUCTOS | C26: Tarifas Anuales
A27: Bupa Exclusive Care | C27: n/a | D27: =+Exclusive!I37 -> 12581 | E27: =+Exclusive!J37 -> 8348 | F27: =+Exclusive!K37 -> 6018 | G27: =+Exclusive!L37 -> 4224 | H27: =+Exclusive!M37 -> 3389
A28: Bupa Privilege Care | C28: n/a | D28: =+Privilege!I37 -> 10596 | E28: =+Privilege!J37 -> 7310 | F28: =+Privilege!K37 -> 5264 | G28: =+Privilege!L37 -> 3696 | H28: =+Privilege!M37 -> 2890
A29: Bupa Advantage Care | C29: n/a | D29: =+'Advantage (Mundial)'!I38 -> 7374 | E29: =+'Advantage (Mundial)'!J38 -> 5641 | F29: =+'Advantage (Mundial)'!K38 -> 4247 | G29: =+'Advantage (Mundial)'!L38 -> 3265 | H29: =+'Advantage (Mundial)'!M38 -> 2664
A30: Bupa Secure Care | C30: n/a | D30: =+Secure!I38 -> 5684 | E30: =+Secure!J38 -> 4541 | F30: =+Secure!K38 -> 3449 | G30: =+Secure!L38 -> 2966 | H30: =+Secure!M38 -> 2339
A31: Bupa Essential Care | C31: n/a | D31: =+Essential!I38 -> 4876 | E31: =+Essential!J38 -> 3903 | F31: =+Essential!K38 -> 2978 | G31: =+Essential!L38 -> 2566 | H31: =+Essential!M38 -> 2034
A33: Deducibles | C33: PLAN 1 | D33: PLAN 2 | E33: PLAN 3 | F33: PLAN 4 | G33: PLAN 5 | H33: PLAN 6
A34: Dentro del pais de residencia | C34: 2000 | D34: 3500 | E34: 5000 | F34: 10000 | G34: 20000 | H34: 50000
A35: Fuera del pais de residencia | C35: 2000 | D35: 3500 | E35: 5000 | F35: 10000 | G35: 20000 | H35: 50000
C36: Tarifas Anuales
A37: Bupa Critical Care | C37: =+Critical!H49 -> 3245 | D37: =+Critical!I49 -> 2596 | E37: =+Critical!J49 -> 2235 | F37: =+Critical!K49 -> 1733 | G37: =+Critical!L49 -> 1324 | H37: =+Critical!M49 -> 883
A38: Tarifas en US $ - Válidas desde 01 enero 2023
A40: Este presupuesto solamente tiene carácter informativo y en ningún momento expresa compromiso legal para suministrarle cobertura de seguro. La emisión de una póliza de seguro Bupa está sujeta a todas las evaluaciones de riesgo por parte de Bupa y a la recepción de todos los pagos de prima requeridos.

Sheet Comparacion de Beneficios
B2: 2023 BUPA CARE COMPARACION DE BENEFICIOS

Sheet Tablas (hidden)
A2: EXCLUSIVE | J2: FACTOR SEMESTRAL : | L2: 0.53
A3: TARIFAS ANUALES
A4: EDAD
D5: DW2 | E5: DW3 | F5: DW4 | G5: DW5 | H5: DW6 | J5: 2 | K5: 6 | L5: 10 | M5: 14 | N5: 18
A6: 18 | B6: 18-24 | D6: 12506 | E6: 8273 | F6: 5718 | G6: 3924 | H6: 3089 | J6: 0 | K6: 0 | L6: 0 | M6: 0 | N6: 0
A7: 25 | B7: 25-29 | D7: 13117 | E7: 9133 | F7: 6334 | G7: 4344 | H7: 3421 | J7: 0 | K7: 0 | L7: 0 | M7: 0 | N7: 0
A8: 30 | B8: 30-34 | D8: 13638 | E8: 9803 | F8: 7091 | G8: 5198 | H8: 4101 | J8: 0 | K8: 0 | L8: 0 | M8: 0 | N8: 0
A9: 35 | B9: 35-39 | D9: 15278 | E9: 10972 | F9: 7946 | G9: 5830 | H9: 4595 | J9: 0 | K9: 0 | L9: 0 | M9: 0 | N9: 0
A10: 40 | B10: 40-44 | D10: 17708 | E10: 12002 | F10: 8814 | G10: 6407 | H10: 5048 | J10: 0 | K10: 0 | L10: 0 | M10: 0 | N10: 0
A11: 45 | B11: 45-49 | D11: 19799 | E11: 13416 | F11: 9851 | G11: 7160 | H11: 5645 | J11: 0 | K11: 0 | L11: 0 | M11: 0 | N11: 0
A12: 50 | B12: 50-54 | D12: 25329 | E12: 17595 | F12: 12854 | G12: 10112 | H12: 7973 | J12: 0 | K12: 0 | L12: 0 | M12: 0 | N12: 0
A13: 55 | B13: 55-59 | D13: 26947 | E13: 18720 | F13: 13672 | G13: 10755 | H13: 8485 | J13: 0 | K13: 0 | L13: 0 | M13: 0 | N13: 0
A14: 60 | B14: 60 | D14: 29355 | E14: 20425 | F14: 15728 | G14: 12954 | H14: 10538 | J14: 0 | K14: 0 | L14: 0 | M14: 0 | N14: 0
A15: 61 | B15: 61 | D15: 31534 | E15: 21941 | F15: 16891 | G15: 13926 | H15: 11323 | J15: 0 | K15: 0 | L15: 0 | M15: 0 | N15: 0
A16: 62 | B16: 62 | D16: 34527 | E16: 24034 | F16: 18501 | G16: 15235 | H16: 12402 | J16: 0 | K16: 0 | L16: 0 | M16: 0 | N16: 0
A17: 63 | B17: 63 | D17: 36715 | E17: 25552 | F17: 19656 | G17: 16204 | H17: 13182 | J17: 0 | K17: 0 | L17: 0 | M17: 0 | N17: 0
A18: 64 | B18: 64 | D18: 39706 | E18: 27647 | F18: 21268 | G18: 17532 | H18: 14259 | J18: 0 | K18: 0 | L18: 0 | M18: 0 | N18: 0
A19: 65 | B19: 65 | D19: 51905 | E19: 36057 | F19: 26888 | G19: 23374 | H19: 20101 | J19: 0 | K19: 0 | L19: 0 | M19: 0 | N19: 0
A20: 66 | B20: 66 | D20: 60293 | E20: 41892 | F20: 31251 | G20: 27165 | H20: 23360 | J20: 0 | K20: 0 | L20: 0 | M20: 0 | N20: 0
A21: 67 | B21: 67 | D21: 65867 | E21: 45753 | F21: 34133 | G21: 29666 | H21: 25514 | J21: 0 | K21: 0 | L21: 0 | M21: 0 | N21: 0
A22: 68 | B22: 68 | D22: 72921 | E22: 50665 | F22: 37791 | G22: 32853 | H22: 28255 | J22: 0 | K22: 0 | L22: 0 | M22: 0 | N22: 0
A23: 69 | B23: 69 | D23: 80233 | E23: 55739 | F23: 41574 | G23: 36142 | H23: 31088 | J23: 0 | K23: 0 | L23: 0 | M23: 0 | N23: 0
A24: 70 | B24: 70 | D24: 98744 | E24: 67865 | F24: 48945 | G24: 42112 | H24: 36560 | J24: 0 | K24: 0 | L24: 0 | M24: 0 | N24: 0
A25: 71 | B25: 71 | D25: 102620 | E25: 70529 | F25: 50865 | G25: 43768 | H25: 38000 | J25: 0 | K25: 0 | L25: 0 | M25: 0 | N25: 0
A26: 72 | B26: 72 | D26: 105527 | E26: 72520 | F26: 52297 | G26: 45009 | H26: 39081 | J26: 0 | K26: 0 | L26: 0 | M26: 0 | N26: 0
A27: 73 | B27: 73 | D27: 109403 | E27: 75185 | F27: 54222 | G27: 46667 | H27: 40516 | J27: 0 | K27: 0 | L27: 0 | M27: 0 | N27: 0
A28: 74 | B28: 74 | D28: 111336 | E28: 76514 | F28: 55180 | G28: 47489 | H28: 41237 | J28: 0 | K28: 0 | L28: 0 | M28: 0 | N28: 0
A29: 75 | B29: 75+ | D29: 116189 | E29: 79840 | F29: 57583 | G29: 49564 | H29: 43027 | J29: 0 | K29: 0 | L29: 0 | M29: 0 | N29: 0
A30: 1 | B30: 1 Child | D30: 4343 | E30: 3197 | F30: 2548 | G30: 2073 | H30: 1621 | J30: 0 | K30: 0 | L30: 0 | M30: 0 | N30: 0
A31: 2 | B31: 2 Children | D31: 6901 | E31: 5085 | F31: 4055 | G31: 3289 | H31: 2560 | J31: 0 | K31: 0 | L31: 0 | M31: 0 | N31: 0
A32: 3 | B32: 3+ Children | D32: 10119 | E32: 7458 | F32: 5937 | G32: 4827 | H32: 3759 | J32: 0 | K32: 0 | L32: 0 | M32: 0 | N32: 0
A33: 1 | B33: Rider Comp. Maternidad | D33: 0 | E33: 0 | F33: 225 | G33: 225 | H33: 225
A34: 1 | B34: Transplante de organos | D34: 0 | E34: 0 | F34: 0 | G34: 0 | H34: 0
A36: TARIFAS SEMESTRALES
A37: EDAD
D38: DW2 | E38: DW3 | F38: DW4 | G38: DW5 | H38: DW6 | J38: 3 | K38: 7 | L38: 11 | M38: 15 | N38: 19
A39: 18 | B39: 18-24 | D39: =$L$2*D6 -> 6628.18 | E39: =$L$2*E6 -> 4384.69 | F39: 3030.54 | G39: 2079.72 | H39: 1637.17 | J39: 0 | K39: 0 | L39: 0 | M39: 0 | N39: 0
A40: 25 | B40: 25-29 | D40: =$L$2*D7 -> 6952.01 | E40: 4840.49 | F40: 3357.02 | G40: 2302.32 | H40: 1813.13 | J40: 0 | K40: 0 | L40: 0 | M40: 0 | N40: 0
A41: 30 | B41: 30-34 | D41: 7228.14 | E41: 5195.59 | F41: 3758.23 | G41: 2754.94 | H41: 2173.53 | J41: 0 | K41: 0 | L41: 0 | M41: 0 | N41: 0
A42: 35 | B42: 35-39 | D42: 8097.34 | E42: 5815.16 | F42: 4211.38 | G42: 3089.9 | H42: 2435.35 | J42: 0 | K42: 0 | L42: 0 | M42: 0 | N42: 0
A43: 40 | B43: 40-44 | D43: 9385.24 | E43: 6361.06 | F43: 4671.42 | G43: 3395.71 | H43: 2675.44 | J43: 0 | K43: 0 | L43: 0 | M43: 0 | N43: 0
A44: 45 | B44: 45-49 | D44: 10493.47 | E44: 7110.48 | F44: 5221.03 | G44: 3794.8 | H44: 2991.85 | J44: 0 | K44: 0 | L44: 0 | M44: 0 | N44: 0
A45: 50 | B45: 50-54 | D45: 13424.37 | E45: 9325.35 | F45: 6812.62 | G45: 5359.36 | H45: 4225.69 | J45: 0 | K45: 0 | L45: 0 | M45: 0 | N45: 0
A46: 55 | B46: 55-59 | D46: 14281.91 | E46: 9921.6 | F46: 7246.16 | G46: 5700.15 | H46: 4497.05 | J46: 0 | K46: 0 | L46: 0 | M46: 0 | N46: 0
A47: 60 | B47: 60 | D47: 15558.15 | E47: 10825.25 | F47: 8335.84 | G47: 6865.62 | H47: 5585.14 | J47: 0 | K47: 0 | L47: 0 | M47: 0 | N47: 0
A48: 61 | B48: 61 | D48: 16713.02 | E48: 11628.73 | F48: 8952.23 | G48: 7380.78 | H48: 6001.19 | J48: 0 | K48: 0 | L48: 0 | M48: 0 | N48: 0
A49: 62 | B49: 62 | D49: 18299.31 | E49: 12738.02 | F49: 9805.53 | G49: 8074.55 | H49: 6573.06 | J49: 0 | K49: 0 | L49: 0 | M49: 0 | N49: 0
A50: 63 | B50: 63 | D50: 19458.95 | E50: 13542.56 | F50: 10417.68 | G50: 8588.12 | H50: 6986.46 | J50: 0 | K50: 0 | L50: 0 | M50: 0 | N50: 0
A51: 64 | B51: 64 | D51: 21044.18 | E51: 14652.91 | F51: 11272.04 | G51: 9291.96 | H51: 7557.27 | J51: 0 | K51: 0 | L51: 0 | M51: 0 | N51: 0
A52: 65 | B52: 65 | D52: 27509.65 | E52: 19110.21 | F52: 14250.64 | G52: 12388.22 | H52: 10653.53 | J52: 0 | K52: 0 | L52: 0 | M52: 0 | N52: 0
A53: 66 | B53: 66 | D53: 31955.29 | E53: 22202.76 | F53: 16563.03 | G53: 14397.45 | H53: 12380.8 | J53: 0 | K53: 0 | L53: 0 | M53: 0 | N53: 0
A54: 67 | B54: 67 | D54: 34909.51 | E54: 24249.09 | F54: 18090.49 | G54: 15722.98 | H54: 13522.42 | J54: 0 | K54: 0 | L54: 0 | M54: 0 | N54: 0
A55: 68 | B55: 68 | D55: 38648.13 | E55: 26852.45 | F55: 20029.23 | G55: 17412.09 | H55: 14975.15 | J55: 0 | K55: 0 | L55: 0 | M55: 0 | N55: 0
A56: 69 | B56: 69 | D56: 42523.49 | E56: 29541.67 | F56: 22034.22 | G56: 19155.26 | H56: 16476.64 | J56: 0 | K56: 0 | L56: 0 | M56: 0 | N56: 0
A57: 70 | B57: 70 | D57: 52334.32 | E57: 35968.45 | F57: 25940.85 | G57: 22319.36 | H57: 19376.8 | J57: 0 | K57: 0 | L57: 0 | M57: 0 | N57: 0
A58: 71 | B58: 71 | D58: 54388.6 | E58: 37380.37 | F58: 26958.45 | G58: 23197.04 | H58: 20140 | J58: 0 | K58: 0 | L58: 0 | M58: 0 | N58: 0
A59: 72 | B59: 72 | D59: 55929.31 | E59: 38435.6 | F59: 27717.41 | G59: 23854.77 | H59: 20712.93 | J59: 0 | K59: 0 | L59: 0 | M59: 0 | N59: 0
A60: 73 | B60: 73 | D60: 57983.59 | E60: 39848.05 | F60: 28737.66 | G60: 24733.51 | H60: 21473.48 | J60: 0 | K60: 0 | L60: 0 | M60: 0 | N60: 0
A61: 74 | B61: 74 | D61: 59008.08 | E61: 40552.42 | F61: 29245.4 | G61: 25169.17 | H61: 21855.61 | J61: 0 | K61: 0 | L61: 0 | M61: 0 | N61: 0
A62: 75 | B62: 75+ | D62: 61580.17 | E62: 42315.2 | F62: 30518.99 | G62: 26268.92 | H62: 22804.31 | J62: 0 | K62: 0 | L62: 0 | M62: 0 | N62: 0
A63: 1 | B63: 1 Child | D63: 2301.79 | E63: 1694.41 | F63: 1350.44 | G63: 1098.69 | H63: 859.13 | J63: 0 | K63: 0 | L63: 0 | M63: 0 | N63: 0
A64: 2 | B64: 2 Children | D64: 3657.53 | E64: 2695.05 | F64: 2149.15 | G64: 1743.17 | H64: 1356.8 | J64: 0 | K64: 0 | L64: 0 | M64: 0 | N64: 0
A65: 3 | B65: 3+ Children | D65: 5363.07 | E65: 3952.74 | F65: 3146.61 | G65: 2558.31 | H65: 1992.27 | J65: 0 | K65: 0 | L65: 0 | M65: 0 | N65: 0
A66: 1 | B66: Rider Comp. Maternidad | D66: =+D33*$L$2 -> 0 | E66: 0 | F66: 119.25 | G66: 119.25 | H66: 119.25
A67: 1 | B67: Transplante de organos | D67: 0 | E67: 0 | F67: 0 | G67: 0 | H67: 0
A69: DIAMOND (LATINAMERICA ONLY)
A70: TARIFAS ANUALES
A71: EDAD
A73: 18 | B73: - 24
A74: 25 | B74: - 29
A75: 30 | B75: - 34
A76: 35 | B76: - 39
A77: 40 | B77: - 44
A78: 45 | B78: - 49
A79: 50 | B79: - 54
A80: 55 | B80: - 59
A81: 60
A82: 61
A83: 62
A84: 63
A85: 64
A86: 65
A87: 66
A88: 67
A89: 68
A90: 69
A91: 70
A92: 71
A93: 72
A94: 73
A95: 74
A96: 75 | B96: o más
A97: 1 | B97: Hijo
A98: 2 | B98: Hijos
A99: 3 | B99: Hijos o más
A100: 1 | B100: Rider Comp. Maternidad
A101: 1 | B101: Transplante de organos
A103: TARIFAS SEMESTRALES
A104: EDAD
A106: 18 | B106: - 24
A107: 25 | B107: - 29
A108: 30 | B108: - 34
A109: 35 | B109: - 39
A110: 40 | B110: - 44
A111: 45 | B111: - 49
A112: 50 | B112: - 54
A113: 55 | B113: - 59
A114: 60
A115: 61
A116: 62
A117: 63
A118: 64
A119: 65
A120: 66
A121: 67
A122: 68
A123: 69
A124: 70
A125: 71
A126: 72
A127: 73
A128: 74
A129: 75 | B129: o más
A130: 1 | B130: Hijo
A131: 2 | B131: Hijos
A132: 3 | B132: Hijos o más
A133: 1 | B133: Rider Comp. Maternidad
A134: 1 | B134: Transplante de organos
A136: PRIVILEGE
A137: TARIFAS ANUALES
A138: EDAD
D139: CW2 | E139: CW3 | F139: CW4 | G139: CW5 | H139: CW6 | J139: 2 | K139: 6 | L139: 10 | M139: 14 | N139: 18
A140: 18 | B140: 18-24 | D140: 10521 | E140: 7235 | F140: 4964 | G140: 3396 | H140: 2590 | J140: 0 | K140: 0 | L140: 0 | M140: 0 | N140: 0
A141: 25 | B141: 25-29 | D141: 11039 | E141: 8008 | F141: 5502 | G141: 3760 | H141: 2863 | J141: 0 | K141: 0 | L141: 0 | M141: 0 | N141: 0
A142: 30 | B142: 30-34 | D142: 11533 | E142: 8571 | F142: 6170 | G142: 4549 | H142: 3473 | J142: 0 | K142: 0 | L142: 0 | M142: 0 | N142: 0
A143: 35 | B143: 35-39 | D143: 12912 | E143: 9595 | F143: 6909 | G143: 5101 | H143: 3890 | J143: 0 | K143: 0 | L143: 0 | M143: 0 | N143: 0
A144: 40 | B144: 40-44 | D144: 14944 | E144: 10511 | F144: 7689 | G144: 5624 | H144: 4293 | J144: 0 | K144: 0 | L144: 0 | M144: 0 | N144: 0
A145: 45 | B145: 45-49 | D145: 16695 | E145: 11746 | F145: 8594 | G145: 6285 | H145: 4805 | J145: 0 | K145: 0 | L145: 0 | M145: 0 | N145: 0
A146: 50 | B146: 50-54 | D146: 21826 | E146: 15494 | F146: 11276 | G146: 8970 | H146: 6852 | J146: 0 | K146: 0 | L146: 0 | M146: 0 | N146: 0
A147: 55 | B147: 55-59 | D147: 23219 | E147: 16485 | F147: 12006 | G147: 9542 | H147: 7298 | J147: 0 | K147: 0 | L147: 0 | M147: 0 | N147: 0
A148: 60 | B148: 60 | D148: 25286 | E148: 17906 | F148: 13657 | G148: 11349 | H148: 9119 | J148: 0 | K148: 0 | L148: 0 | M148: 0 | N148: 0
A149: 61 | B149: 61 | D149: 27165 | E149: 19224 | F149: 14672 | G149: 12202 | H149: 9790 | J149: 0 | K149: 0 | L149: 0 | M149: 0 | N149: 0
A150: 62 | B150: 62 | D150: 29735 | E150: 21058 | F150: 16068 | G150: 13360 | H150: 10721 | J150: 0 | K150: 0 | L150: 0 | M150: 0 | N150: 0
A151: 63 | B151: 63 | D151: 31619 | E151: 22389 | F151: 17080 | G151: 14200 | H151: 11400 | J151: 0 | K151: 0 | L151: 0 | M151: 0 | N151: 0
A152: 64 | B152: 64 | D152: 34200 | E152: 24224 | F152: 18479 | G152: 15360 | H152: 12337 | J152: 0 | K152: 0 | L152: 0 | M152: 0 | N152: 0
A153: 65 | B153: 65 | D153: 44706 | E153: 31593 | F153: 23364 | G153: 20488 | H153: 17393 | J153: 0 | K153: 0 | L153: 0 | M153: 0 | N153: 0
A154: 66 | B154: 66 | D154: 51936 | E154: 36710 | F154: 27147 | G154: 23807 | H154: 20213 | J154: 0 | K154: 0 | L154: 0 | M154: 0 | N154: 0
A155: 67 | B155: 67 | D155: 56725 | E155: 40099 | F155: 29647 | G155: 25993 | H155: 22076 | J155: 0 | K155: 0 | L155: 0 | M155: 0 | N155: 0
A156: 68 | B156: 68 | D156: 62813 | E156: 44392 | F156: 32841 | G156: 28798 | H156: 24443 | J156: 0 | K156: 0 | L156: 0 | M156: 0 | N156: 0
A157: 69 | B157: 69 | D157: 69105 | E157: 48834 | F157: 36122 | G157: 31674 | H157: 26896 | J157: 0 | K157: 0 | L157: 0 | M157: 0 | N157: 0
A158: 70 | B158: 70 | D158: 85044 | E158: 59470 | F158: 42518 | G158: 36905 | H158: 31637 | J158: 0 | K158: 0 | L158: 0 | M158: 0 | N158: 0
A159: 71 | B159: 71 | D159: 88388 | E159: 61802 | F159: 44188 | G159: 38356 | H159: 32884 | J159: 0 | K159: 0 | L159: 0 | M159: 0 | N159: 0
A160: 72 | B160: 72 | D160: 90891 | E160: 63554 | F160: 45439 | G160: 39443 | H160: 33806 | J160: 0 | K160: 0 | L160: 0 | M160: 0 | N160: 0
A161: 73 | B161: 73 | D161: 94231 | E161: 65889 | F161: 47114 | G161: 40888 | H161: 35058 | J161: 0 | K161: 0 | L161: 0 | M161: 0 | N161: 0
A162: 74 | B162: 74 | D162: 95896 | E162: 67049 | F162: 47942 | G162: 41618 | H162: 35677 | J162: 0 | K162: 0 | L162: 0 | M162: 0 | N162: 0
A163: 75 | B163: 75+ | D163: 100079 | E163: 69969 | F163: 50030 | G163: 43430 | H163: 37224 | J163: 0 | K163: 0 | L163: 0 | M163: 0 | N163: 0
A164: 1 | B164: 1 Child | D164: 3651 | E164: 2672 | F164: 2020 | G164: 1643 | H164: 1213 | J164: 0 | K164: 0 | L164: 0 | M164: 0 | N164: 0
A165: 2 | B165: 2 Children | D165: 5810 | E165: 4250 | F165: 3213 | G165: 2612 | H165: 1932 | J165: 0 | K165: 0 | L165: 0 | M165: 0 | N165: 0
A166: 3 | B166: 3+ Children | D166: 8502 | E166: 6230 | F166: 4704 | G166: 3825 | H166: 2835 | J166: 0 | K166: 0 | L166: 0 | M166: 0 | N166: 0
A167: 1 | B167: Rider Comp. Maternidad | D167: 0 | E167: 0 | F167: 225 | G167: 225 | H167: 225
A168: 1 | B168: Transplante de organos | D168: 0 | E168: 0 | F168: 0 | G168: 0 | H168: 0
A170: TARIFAS SEMESTRALES
A171: EDAD
D172: CW2 | E172: CW3 | F172: CW4 | G172: CW5 | H172: CW6 | J172: 3 | K172: 7 | L172: 11 | M172: 15 | N172: 19
A173: 18 | B173: 18-24 | D173: =$L$2*D140 -> 5576.13 | E173: =$L$2*E140 -> 3834.55 | F173: 2630.92 | G173: 1799.88 | H173: 1372.7 | J173: 0 | K173: 0 | L173: 0 | M173: 0 | N173: 0
A174: 25 | B174: 25-29 | D174: =$L$2*D141 -> 5850.67 | E174: 4244.24 | F174: 2916.06 | G174: 1992.8 | H174: 1517.39 | J174: 0 | K174: 0 | L174: 0 | M174: 0 | N174: 0
A175: 30 | B175: 30-34 | D175: 6112.49 | E175: 4542.63 | F175: 3270.1 | G175: 2410.97 | H175: 1840.69 | J175: 0 | K175: 0 | L175: 0 | M175: 0 | N175: 0
A176: 35 | B176: 35-39 | D176: 6843.36 | E176: 5085.35 | F176: 3661.77 | G176: 2703.53 | H176: 2061.7 | J176: 0 | K176: 0 | L176: 0 | M176: 0 | N176: 0
A177: 40 | B177: 40-44 | D177: 7920.32 | E177: 5570.83 | F177: 4075.17 | G177: 2980.72 | H177: 2275.29 | J177: 0 | K177: 0 | L177: 0 | M177: 0 | N177: 0
A178: 45 | B178: 45-49 | D178: 8848.35 | E178: 6225.38 | F178: 4554.82 | G178: 3331.05 | H178: 2546.65 | J178: 0 | K178: 0 | L178: 0 | M178: 0 | N178: 0
A179: 50 | B179: 50-54 | D179: 11567.78 | E179: 8211.82 | F179: 5976.28 | G179: 4754.1 | H179: 3631.56 | J179: 0 | K179: 0 | L179: 0 | M179: 0 | N179: 0
A180: 55 | B180: 55-59 | D180: 12306.07 | E180: 8737.05 | F180: 6363.18 | G180: 5057.26 | H180: 3867.94 | J180: 0 | K180: 0 | L180: 0 | M180: 0 | N180: 0
A181: 60 | B181: 60 | D181: 13401.58 | E181: 9490.18 | F181: 7238.21 | G181: 6014.97 | H181: 4833.07 | J181: 0 | K181: 0 | L181: 0 | M181: 0 | N181: 0
A182: 61 | B182: 61 | D182: 14397.45 | E182: 10188.72 | F182: 7776.16 | G182: 6467.06 | H182: 5188.7 | J182: 0 | K182: 0 | L182: 0 | M182: 0 | N182: 0
A183: 62 | B183: 62 | D183: 15759.55 | E183: 11160.74 | F183: 8516.04 | G183: 7080.8 | H183: 5682.13 | J183: 0 | K183: 0 | L183: 0 | M183: 0 | N183: 0
A184: 63 | B184: 63 | D184: 16758.07 | E184: 11866.17 | F184: 9052.4 | G184: 7526 | H184: 6042 | J184: 0 | K184: 0 | L184: 0 | M184: 0 | N184: 0
A185: 64 | B185: 64 | D185: 18126 | E185: 12838.72 | F185: 9793.87 | G185: 8140.8 | H185: 6538.61 | J185: 0 | K185: 0 | L185: 0 | M185: 0 | N185: 0
A186: 65 | B186: 65 | D186: 23694.18 | E186: 16744.29 | F186: 12382.92 | G186: 10858.64 | H186: 9218.29 | J186: 0 | K186: 0 | L186: 0 | M186: 0 | N186: 0
A187: 66 | B187: 66 | D187: 27526.08 | E187: 19456.3 | F187: 14387.91 | G187: 12617.71 | H187: 10712.89 | J187: 0 | K187: 0 | L187: 0 | M187: 0 | N187: 0
A188: 67 | B188: 67 | D188: 30064.25 | E188: 21252.47 | F188: 15712.91 | G188: 13776.29 | H188: 11700.28 | J188: 0 | K188: 0 | L188: 0 | M188: 0 | N188: 0
A189: 68 | B189: 68 | D189: 33290.89 | E189: 23527.76 | F189: 17405.73 | G189: 15262.94 | H189: 12954.79 | J189: 0 | K189: 0 | L189: 0 | M189: 0 | N189: 0
A190: 69 | B190: 69 | D190: 36625.65 | E190: 25882.02 | F190: 19144.66 | G190: 16787.22 | H190: 14254.88 | J190: 0 | K190: 0 | L190: 0 | M190: 0 | N190: 0
A191: 70 | B191: 70 | D191: 45073.32 | E191: 31519.1 | F191: 22534.54 | G191: 19559.65 | H191: 16767.61 | J191: 0 | K191: 0 | L191: 0 | M191: 0 | N191: 0
A192: 71 | B192: 71 | D192: 46845.64 | E192: 32755.06 | F192: 23419.64 | G192: 20328.68 | H192: 17428.52 | J192: 0 | K192: 0 | L192: 0 | M192: 0 | N192: 0
A193: 72 | B193: 72 | D193: 48172.23 | E193: 33683.62 | F193: 24082.67 | G193: 20904.79 | H193: 17917.18 | J193: 0 | K193: 0 | L193: 0 | M193: 0 | N193: 0
A194: 73 | B194: 73 | D194: 49942.43 | E194: 34921.17 | F194: 24970.42 | G194: 21670.64 | H194: 18580.74 | J194: 0 | K194: 0 | L194: 0 | M194: 0 | N194: 0
A195: 74 | B195: 74 | D195: 50824.88 | E195: 35535.97 | F195: 25409.26 | G195: 22057.54 | H195: 18908.81 | J195: 0 | K195: 0 | L195: 0 | M195: 0 | N195: 0
A196: 75 | B196: 75+ | D196: 53041.87 | E196: 37083.57 | F196: 26515.9 | G196: 23017.9 | H196: 19728.72 | J196: 0 | K196: 0 | L196: 0 | M196: 0 | N196: 0
A197: 1 | B197: 1 Child | D197: 1935.03 | E197: 1416.16 | F197: 1070.6 | G197: 870.79 | H197: 642.89 | J197: 0 | K197: 0 | L197: 0 | M197: 0 | N197: 0
A198: 2 | B198: 2 Children | D198: 3079.3 | E198: 2252.5 | F198: 1702.89 | G198: 1384.36 | H198: 1023.96 | J198: 0 | K198: 0 | L198: 0 | M198: 0 | N198: 0
A199: 3 | B199: 3+ Children | D199: 4506.06 | E199: 3301.9 | F199: 2493.12 | G199: 2027.25 | H199: 1502.55 | J199: 0 | K199: 0 | L199: 0 | M199: 0 | N199: 0
A200: 1 | B200: Rider Comp. Maternidad | D200: =+D167*$L$2 -> 0 | E200: 0 | F200: 119.25 | G200: 119.25 | H200: 119.25
A201: 1 | B201: Transplante de organos | D201: 0 | E201: 0 | F201: 0 | G201: 0 | H201: 0
A203: COMPLETE (LATINAMERICA ONLY)
A204: TARIFAS ANUALES
A205: EDAD
A207: 18 | B207: - 24
A208: 25 | B208: - 29
A209: 30 | B209: - 34
A210: 35 | B210: - 39
... 337 more rows

Sheet Sheet1 (hidden)
B1: Deductible | C1: 2000 | G1: 3500 | K1: 5000 | O1: 10000 | S1: 20000 | W1: 50000
C2: Annual | D2: Semi-Annual | E2: Quarterly | F2: Monthly | G2: Annual | H2: Semi-Annual | I2: Quarterly | J2: Monthly | K2: Annual | L2: Semi-Annual | M2: Quarterly | N2: Monthly | O2: Annual | P2: Semi-Annual | Q2: Quarterly | R2: Monthly | S2: Annual | T2: Semi-Annual | U2: Quarterly | V2: Monthly | W2: Annual | X2: Semi-Annual | Y2: Quarterly | Z2: Monthly
B3: Under 50
B4: 0 1 Member | C4: 3170 | D4: 1680.1 | E4: 871.75 | F4: 295.8666667 | G4: 2521 | H4: 1336.13 | I4: 693.275 | J4: 235.2933333 | K4: 2160 | L4: 1144.8 | M4: 594 | N4: 201.6 | O4: 1658 | P4: 878.74 | Q4: 455.95 | R4: 154.7466667 | S4: 1249 | T4: 661.97 | U4: 343.475 | V4: 116.5733333 | W4: 808 | X4: 428.24 | Y4: 222.2 | Z4: 75.41333333
B5: 0 2 Members | C5: 5564 | D5: 2948.92 | E5: 1530.1 | F5: 519.3066667 | G5: 4289 | H5: 2273.17 | I5: 1179.475 | J5: 400.3066667 | K5: 3694 | L5: 1957.82 | M5: 1015.85 | N5: 344.7733333 | O5: 2791 | P5: 1479.23 | Q5: 767.525 | R5: 260.4933333 | S5: 2014 | T5: 1067.42 | U5: 553.85 | V5: 187.9733333 | W5: 1186 | X5: 628.58 | Y5: 326.15 | Z5: 110.6933333
B6: 0 3+ Members | C6: 7955 | D6: 4216.15 | E6: 2187.625 | F6: 742.4666667 | G6: 6061 | H6: 3212.33 | I6: 1666.775 | J6: 565.6933333 | K6: 5227 | L6: 2770.31 | M6: 1437.425 | N6: 487.8533333 | O6: 3909 | P6: 2071.77 | Q6: 1074.975 | R6: 364.84 | S6: 2775 | T6: 1470.75 | U6: 763.125 | V6: 259 | W6: 1570 | X6: 832.1 | Y6: 431.75 | Z6: 146.5333333
B8: Over 50
B9: 50 1 Member | C9: 4003 | D9: 2121.59 | E9: 1100.825 | F9: 373.6133333 | G9: 3167 | H9: 1678.51 | I9: 870.925 | J9: 295.5866667 | K9: 2691 | L9: 1426.23 | M9: 740.025 | N9: 251.16 | O9: 2056 | P9: 1089.68 | Q9: 565.4 | R9: 191.8933333 | S9: 1507 | T9: 798.71 | U9: 414.425 | V9: 140.6533333 | W9: 938 | X9: 497.14 | Y9: 257.95 | Z9: 87.54666667
B10: 50 2 Members | C10: 6395 | D10: 3389.35 | E10: 1758.625 | F10: 596.8666667 | G10: 4944 | H10: 2620.32 | I10: 1359.6 | J10: 461.44 | K10: 4231 | L10: 2242.43 | M10: 1163.525 | N10: 394.8933333 | O10: 3172 | P10: 1681.16 | Q10: 872.3 | R10: 296.0533333 | S10: 2273 | T10: 1204.69 | U10: 625.075 | V10: 212.1466667 | W10: 1317 | X10: 698.01 | Y10: 362.175 | Z10: 122.92
B11: 50 3+ Members | C11: 8796 | D11: 4661.88 | E11: 2418.9 | F11: 820.96 | G11: 6712 | H11: 3557.36 | I11: 1845.8 | J11: 626.4533333 | K11: 5766 | L11: 3055.98 | M11: 1585.65 | N11: 538.16 | O11: 4299 | P11: 2278.47 | Q11: 1182.225 | R11: 401.24 | S11: 3035 | T11: 1608.55 | U11: 834.625 | V11: 283.2666667 | W11: 1695 | X11: 898.35 | Y11: 466.125 | Z11: 158.2
C16: 3170 | D16: 5564 | E16: 7955 | F16: 2521 | G16: 4289 | H16: 6061 | I16: 2160 | J16: 3694 | K16: 5227 | L16: 1658 | M16: 2791 | N16: 3909 | O16: 1249 | P16: 2014 | Q16: 2775 | R16: 808 | S16: 1186 | T16: 1570
C17: 4003 | D17: 6395 | E17: 8796 | F17: 3167 | G17: 4944 | H17: 6712 | I17: 2691 | J17: 4231 | K17: 5766 | L17: 2056 | M17: 3172 | N17: 4299 | O17: 1507 | P17: 2273 | Q17: 3035 | R17: 938 | S17: 1317 | T17: 1695
C19: 1680.1 | D19: 2948.92 | E19: 4216.15 | F19: 1336.13 | G19: 2273.17 | H19: 3212.33 | I19: 1144.8 | J19: 1957.82 | K19: 2770.31 | L19: 878.74 | M19: 1479.23 | N19: 2071.77 | O19: 661.97 | P19: 1067.42 | Q19: 1470.75 | R19: 428.24 | S19: 628.58 | T19: 832.1
C20: 2121.59 | D20: 3389.35 | E20: 4661.88 | F20: 1678.51 | G20: 2620.32 | H20: 3557.36 | I20: 1426.23 | J20: 2242.43 | K20: 3055.98 | L20: 1089.68 | M20: 1681.16 | N20: 2278.47 | O20: 798.71 | P20: 1204.69 | Q20: 1608.55 | R20: 497.14 | S20: 698.01 | T20: 898.35
